Workbook

Sheet Reflow
A1: GEF ID | B1: Agency | C1: Project Status | D1: GEF Phase | E1: Project Title | F1: Investment # | G1: Name of sub projects | H1: Region /Country | I1: Sub project status | J1: Non-Grant Investment Amount | K1: Investment Co-financing | L1: Estimated Investment Reflow according to GEF records (base) | M1: Estimated Investment Reflow according to GEF records (bull) | N1: Estimated Investment Reflow according to GEF records (bear) | O1: Actual Investment Reflow (As of June 30 2025) From Trustee | P1: Remaining Expected Reflows | Q1: Board/Agency Approval Date | R1: Disbursement Date | S1: Type of Non-Grant Instrument | T1: Currency risk | U1: Exchange rate at disbursement | V1: Return (IRR %), interest rate (ref rate+spread) or premium (%) as applicable | W1: Frequency of return (quarterly, semi-annually, annually) | X1: Reflow Start Date | Y1: Reflow End Date | Z1: Reflow Period (Years) | AA1: Total of Estimated Investment Reflow Calendar Year Reflows | AB1: QC | AC1: Total of Estimated Future Calendar Year Reflows | AD1: QC | AE1: Before 2017 | AF1: 2017 | AG1: 2018 | AH1: 2019 | AI1: 2020 | AJ1: 2021 | AK1: 2022 | AL1: 2023 | AM1: 2024 | AN1: 2025 | AO1: 2026 | AP1: 2027 | AQ1: 2028 | AR1: 2029 | AS1: 2030 | AT1: 2031 | AU1: 2032 | AV1: 2033 | AW1: 2034 | AX1: 2035 | AY1: 2036 | AZ1: 2037 | BA1: 2038 | BB1: 2039 | BC1: 2040 | BD1: =BC1+1 -> 2041 | BE1: =BD1+1 -> 2042 | BF1: 2043 | BG1: 2044 | BH1: 2045 | BI1: 2046 | BJ1: 2047 | BK1: 2048 | BL1: 2049 | BM1: 2050 | BN1: 2051 | BO1: 2052 | BP1: 2053 | BQ1: 2054 | BR1: 2055 | BS1: 2056 | BT1: 2057 | BU1: 2058
A2: 9914 | B2: IUCN | C2: Under Implementation | D2: GEF - 6 | E2: CPIC Conservation Finance Initiative - Scaling up and Demonstrating the Value of Blended Finance in Conservation | H2: CEX | J2: $7,950,000 | K2: $52,838,000 | L2: $6,206,429 | O2: $0 | P2: =L2-O2 -> $6,206,429 | Q2: 2019-05-03 | R2: 2022-07-25 | S2: Equity | T2: No | U2: NA | V2: -5% | W2: one time | X2: 2025-12-31 | Y2: 2025-12-31 | Z2: 3 | AA2: =SUM(AE2:BU2) -> $6,206,429 | AB2: =AA2-L2 -> 0 | AC2: =SUM(AN2:BU2) -> $6,206,429 | AD2: =AC2-P2 -> 0 | AN2: $6,206,429.27 | AU2: 0

Sheet Table 1
A1: GEF ID | B1: Agency | C1: GEF Phase | D1: Program Title | E1: Country/ Countries | F1: Focal Area (s) | G1: Type of Non-Grant Instrument | H1: GEF Non-Grant Investment Amount (million USD) 11 | I1: Investment Co-financing (million USD) | J1: Reflows generated as of June 2022 (million USD) | K1: Reflows generated as of June 2024 (million USD) 12 | L1: FY22-FY23 difference | M1: Remaining Expected Reflows (million USD) | N1: Estimated Investment Reflow - FY23 (million USD) | O1: Estimated Investment Reflow (million USD) 13 | P1: FY24-23 difference | Q1: Reflow Start Date | R1: Reflow End Date | S1: Scenario 1: Best Case Scenario - FY23 | T1: Scenario 1: Best Case Scenario | U1: FY24-23 difference | V1: Scenario 2: Worst Case Scenario - FY23 | W1: Scenario 2: Worst Case Scenario | X1: FY24-23 difference | Y1: Note
A2: 111 | B2: WB | C2: GEF - 1 | D2: IFC Energy Efficiency Co-financing Project | E2: Hungary | F2: CCM | G2: Guarantee | H2: =VLOOKUP($A2, Reflow_FY22[], 10, FALSE)*10^(-6) ->  | I2: =VLOOKUP($A2, Reflow_FY22[], 11, FALSE)*10^(-6) ->  | J2: 1.0 | K2: =VLOOKUP($A2, Reflow_FY22[], 15, FALSE)*10^(-6) ->  | L2: =IFERROR((K2-J2), 0) -> 0.00 | M2: =VLOOKUP($A2, Reflow_FY22[], 16, FALSE)*10^(-6) ->  | N2: 1.0 | O2: =VLOOKUP($A2, Reflow_FY22[], 12, FALSE)*10^(-6) ->  | P2: =IFERROR((O2-N2)/N2, 0) -> 0% | R2: 2007 | S2: 1.0 | T2: =VLOOKUP($A2, Reflow_FY22[], 13, FALSE)*10^(-6) ->  | U2: =IFERROR((T2-S2)/S2, 0) -> 0% | V2: 1.0 | W2: =VLOOKUP($A2, Reflow_FY22[], 14, FALSE)*10^(-6) ->  | X2: =IFERROR((W2-V2)/V2, 0) -> 0% | Y2: Fully paid back
A3: 1541 | B3: WB | C3: GEF - 2 | D3: IFC Commercializing Energy Efficiency Finance (CEEF) - Tranche I | E3: ECA | F3: CCM | G3: Guarantee | H3: =VLOOKUP($A3, Reflow_FY22[], 10, FALSE)*10^(-6) ->  | I3: =VLOOKUP($A3, Reflow_FY22[], 11, FALSE)*10^(-6) ->  | J3: 10.3 | K3: =VLOOKUP($A3, Reflow_FY22[], 15, FALSE)*10^(-6) ->  | L3: =IFERROR((K3-J3), 0) -> 0.00 | M3: =VLOOKUP($A3, Reflow_FY22[], 16, FALSE)*10^(-6) ->  | N3: 10.3 | O3: =VLOOKUP($A3, Reflow_FY22[], 12, FALSE)*10^(-6) ->  | P3: 0% | R3: 2013 | S3: 10.3 | T3: =VLOOKUP($A3, Reflow_FY22[], 13, FALSE)*10^(-6) ->  | U3: =IFERROR((T3-S3)/S3, 0) -> 0% | V3: 10.3 | W3: =VLOOKUP($A3, Reflow_FY22[], 14, FALSE)*10^(-6) ->  | X3: =IFERROR((W3-V3)/V3, 0) -> 0% | Y3: Fully paid back
A4: 2174 | B4: WB | C4: GEF - 3 | D4: IFC Commercializing Energy Efficiency Finance (CEEF) - Tranche II | E4: ECA | F4: CCM | G4: Guarantee | H4: =VLOOKUP($A4, Reflow_FY22[], 10, FALSE)*10^(-6) ->  | I4: =VLOOKUP($A4, Reflow_FY22[], 11, FALSE)*10^(-6) ->  | J4: 6.8 | K4: =VLOOKUP($A4, Reflow_FY22[], 15, FALSE)*10^(-6) ->  | L4: 0.00 | M4: =VLOOKUP($A4, Reflow_FY22[], 16, FALSE)*10^(-6) ->  | N4: 6.8 | O4: =VLOOKUP($A4, Reflow_FY22[], 12, FALSE)*10^(-6) ->  | P4: 0% | R4: 2018 | S4: 6.8 | T4: =VLOOKUP($A4, Reflow_FY22[], 13, FALSE)*10^(-6) ->  | U4: 0% | V4: 6.8 | W4: =VLOOKUP($A4, Reflow_FY22[], 14, FALSE)*10^(-6) ->  | X4: 0% | Y4: Fully paid back
A5: 2000 | B5: WB | D5: IFC Environmental Business Finance Program (EBFP) | E5: Global | F5: CCM | G5: Guarantee | H5: =VLOOKUP($A5, Reflow_FY22[], 10, FALSE)*10^(-6) ->  | I5: =VLOOKUP($A5, Reflow_FY22[], 11, FALSE)*10^(-6) ->  | J5: 7.2 | K5: =VLOOKUP($A5, Reflow_FY22[], 15, FALSE)*10^(-6) ->  | L5: 0.00 | M5: =VLOOKUP($A5, Reflow_FY22[], 16, FALSE)*10^(-6) ->  | N5: 17.2 | O5: =VLOOKUP($A5, Reflow_FY22[], 12, FALSE)*10^(-6) ->  | P5: 0% | R5: 2027 | S5: 17.2 | T5: =VLOOKUP($A5, Reflow_FY22[], 13, FALSE)*10^(-6) ->  | U5: 0% | V5: 17.2 | W5: =VLOOKUP($A5, Reflow_FY22[], 14, FALSE)*10^(-6) ->  | X5: 0% | Y5: Fully paid back
A6: 2108 | B6: WB | D6: Philippines Sustainable Energy Finance Program | E6: Philippines | F6: CCM | G6: Guarantee | H6: =VLOOKUP($A6, Reflow_FY22[], 10, FALSE)*10^(-6) ->  | I6: =VLOOKUP($A6, Reflow_FY22[], 11, FALSE)*10^(-6) ->  | J6: 0.0 | K6: =VLOOKUP($A6, Reflow_FY22[], 15, FALSE)*10^(-6) ->  | L6: 0.00 | M6: =VLOOKUP($A6, Reflow_FY22[], 16, FALSE)*10^(-6) ->  | N6: 1.7 | O6: =VLOOKUP($A6, Reflow_FY22[], 12, FALSE)*10^(-6) ->  | P6: 0% | R6: 2023 | S6: 0.0 | T6: =VLOOKUP($A6, Reflow_FY22[], 13, FALSE)*10^(-6) ->  | U6: =IFERROR((T6-S6)/S6, 0) -> 0% | V6: 0.0 | W6: =VLOOKUP($A6, Reflow_FY22[], 14, FALSE)*10^(-6) ->  | X6: =IFERROR((W6-V6)/V6, 0) -> 0% | Y6: Fully paid back
A7: 4257 | B7: WB | C7: GEF - 4 | D7: IFC Earth Fund | E7: Global | F7: CCM BD IW | G7: Debt, Equity, Guarantee | H7: =VLOOKUP($A7, Reflow_FY22[], 10, FALSE)*10^(-6) ->  | I7: =VLOOKUP($A7, Reflow_FY22[], 11, FALSE)*10^(-6) ->  | J7: 10.6 | K7: =VLOOKUP($A7, Reflow_FY22[], 15, FALSE)*10^(-6) ->  | L7: 0.00 | M7: =VLOOKUP($A7, Reflow_FY22[], 16, FALSE)*10^(-6) ->  | N7: 12.0 | O7: =VLOOKUP($A7, Reflow_FY22[], 12, FALSE)*10^(-6) ->  | P7: 0% | R7: 2026 | S7: 12.0 | T7: =VLOOKUP($A7, Reflow_FY22[], 13, FALSE)*10^(-6) ->  | U7: 0% | V7: 12.0 | W7: =VLOOKUP($A7, Reflow_FY22[], 14, FALSE)*10^(-6) ->  | X7: 0% | Y7: Fully paid back
A8: 4959 | B8: IADB | C8: GEF - 5 | D8: IDB PPP Program | E8: Latin America | F8: CCM BD | G8: Equity | H8: =VLOOKUP($A8, Reflow_FY22[], 10, FALSE)*10^(-6) ->  | I8: =VLOOKUP($A8, Reflow_FY22[], 11, FALSE)*10^(-6) ->  | J8: 4.7 | K8: =VLOOKUP($A8, Reflow_FY22[], 15, FALSE)*10^(-6) ->  | L8: 0.00 | M8: =VLOOKUP($A8, Reflow_FY22[], 16, FALSE)*10^(-6) ->  | N8: 16.0 | O8: =VLOOKUP($A8, Reflow_FY22[], 12, FALSE)*10^(-6) ->  | P8: 0% | Q8: 2017 | R8: 2029 | S8: 16.0 | T8: =VLOOKUP($A8, Reflow_FY22[], 13, FALSE)*10^(-6) ->  | U8: 0% | V8: 4.9 | W8: =VLOOKUP($A8, Reflow_FY22[], 14, FALSE)*10^(-6) ->  | X8: 0%
A9: 5388 | B9: IADB | D9: Sustainable Caribbean Energy Fund | E9: Caribbean Basin | F9: CCM | G9: Equity | H9: =VLOOKUP($A9, Reflow_FY22[], 10, FALSE)*10^(-6) ->  | I9: =VLOOKUP($A9, Reflow_FY22[], 11, FALSE)*10^(-6) ->  | J9: 0.2 | K9: =VLOOKUP($A9, Reflow_FY22[], 15, FALSE)*10^(-6) ->  | L9: 0.00 | M9: =VLOOKUP($A9, Reflow_FY22[], 16, FALSE)*10^(-6) ->  | N9: 16.6 | O9: =VLOOKUP($A9, Reflow_FY22[], 12, FALSE)*10^(-6) ->  | P9: 0% | Q9: 2021 | R9: 2030 | S9: 16.6 | T9: =VLOOKUP($A9, Reflow_FY22[], 13, FALSE)*10^(-6) ->  | U9: 0% | V9: 0.2 | W9: =VLOOKUP($A9, Reflow_FY22[], 14, FALSE)*10^(-6) ->  | X9: 0%
A10: 5754 | B10: IADB | D10: IDB-GEF Climate-Smart Agriculture Fund for the Americas | E10: Latin America | F10: CCM LD | G10: Debt | H10: =VLOOKUP($A10, Reflow_FY22[], 10, FALSE)*10^(-6) ->  | I10: =VLOOKUP($A10, Reflow_FY22[], 11, FALSE)*10^(-6) ->  | J10: 0.4 | K10: =VLOOKUP($A10, Reflow_FY22[], 15, FALSE)*10^(-6) ->  | L10: 0.00 | M10: =VLOOKUP($A10, Reflow_FY22[], 16, FALSE)*10^(-6) ->  | N10: 6.7 | O10: =VLOOKUP($A10, Reflow_FY22[], 12, FALSE)*10^(-6) ->  | P10: 0% | Q10: 2019 | R10: 2033 | S10: 6.7 | T10: =VLOOKUP($A10, Reflow_FY22[], 13, FALSE)*10^(-6) ->  | U10: 0% | V10: 3.0 | W10: =VLOOKUP($A10, Reflow_FY22[], 14, FALSE)*10^(-6) ->  | X10: 0%
A11: 5143 | B11: EBRD | D11: Structured Financing for Energy Efficiency in Southern Mediterranean | E11: EMEA | F11: CCM | G11: Debt | H11: =VLOOKUP($A11, Reflow_FY22[], 10, FALSE)*10^(-6) ->  | I11: =VLOOKUP($A11, Reflow_FY22[], 11, FALSE)*10^(-6) ->  | J11: 0.4 | K11: =VLOOKUP($A11, Reflow_FY22[], 15, FALSE)*10^(-6) ->  | L11: 0.00 | M11: =O11-K11 ->  | N11: 16.3 | O11: =VLOOKUP($A11, Reflow_FY22[], 12, FALSE)*10^(-6) ->  | P11: 0% | Q11: 2021 | R11: 2042 | S11: 0.0 | T11: =VLOOKUP($A11, Reflow_FY22[], 13, FALSE)*10^(-6) ->  | U11: 0% | V11: 0.0 | W11: =VLOOKUP($A11, Reflow_FY22[], 14, FALSE)*10^(-6) ->  | X11: 0%
A12: 4929 | B12: AfDB | D12: AfDB PPP Program | E12: Africa | F12: CCM | G12: Equity, Debt | H12: =VLOOKUP($A12, Reflow_FY22[], 10, FALSE)*10^(-6) ->  | I12: =VLOOKUP($A12, Reflow_FY22[], 11, FALSE)*10^(-6) ->  | J12: 1.0 | K12: =VLOOKUP($A12, Reflow_FY22[], 15, FALSE)*10^(-6) ->  | L12: 0.00 | M12: =VLOOKUP($A12, Reflow_FY22[], 16, FALSE)*10^(-6) ->  | N12: 19.6 | O12: =VLOOKUP($A12, Reflow_FY22[], 12, FALSE)*10^(-6) ->  | P12: 0% | Q12: 2019 | R12: 2035 | S12: 19.6 | T12: =VLOOKUP($A12, Reflow_FY22[], 13, FALSE)*10^(-6) ->  | U12: 0% | V12: 0.0 | W12: =VLOOKUP($A12, Reflow_FY22[], 14, FALSE)*10^(-6) ->  | X12: 0%
A13: 9058 | B13: IADB | C13: GEF - 6 | D13: Impact Investment in Support of the Implementation of the Nagoya Protocol on Access and Benefit Sharing | E13: Latin America | F13: BD | G13: Equity | H13: =VLOOKUP($A13, Reflow_FY22[], 10, FALSE)*10^(-6) ->  | I13: =VLOOKUP($A13, Reflow_FY22[], 11, FALSE)*10^(-6) ->  | J13: 0.0 | K13: =VLOOKUP($A13, Reflow_FY22[], 15, FALSE)*10^(-6) ->  | L13: 0.00 | M13: =VLOOKUP($A13, Reflow_FY22[], 16, FALSE)*10^(-6) ->  | N13: 11.2 | O13: =VLOOKUP($A13, Reflow_FY22[], 12, FALSE)*10^(-6) ->  | P13: 0% | Q13: 2028 | R13: 2028 | S13: 11.2 | T13: =VLOOKUP($A13, Reflow_FY22[], 13, FALSE)*10^(-6) ->  | U13: 0% | V13: 0.0 | W13: =VLOOKUP($A13, Reflow_FY22[], 14, FALSE)*10^(-6) ->  | X13: 0%
A14: 9277 | B14: IADB | D14: Risk Mitigation Instrument for Land Restoration | E14: Latin America | F14: LD | G14: Guarantee | H14: =VLOOKUP($A14, Reflow_FY22[], 10, FALSE)*10^(-6) ->  | I14: =VLOOKUP($A14, Reflow_FY22[], 11, FALSE)*10^(-6) ->  | J14: 0.0 | K14: =VLOOKUP($A14, Reflow_FY22[], 15, FALSE)*10^(-6) ->  | L14: 0.00 | M14: =VLOOKUP($A14, Reflow_FY22[], 16, FALSE)*10^(-6) ->  | N14: 15.0 | O14: =VLOOKUP($A14, Reflow_FY22[], 12, FALSE)*10^(-6) ->  | P14: 0% | Q14: 2030 | R14: 2030 | S14: 26.4 | T14: =VLOOKUP($A14, Reflow_FY22[], 13, FALSE)*10^(-6) ->  | U14: 0% | V14: 0.0 | W14: =VLOOKUP($A14, Reflow_FY22[], 14, FALSE)*10^(-6) ->  | X14: 0%
A15: 9047 | B15: EBRD | D15: Green Logistics Program | E15: EMEA | F15: CCM | G15: Debt | H15: =VLOOKUP($A15, Reflow_FY22[], 10, FALSE)*10^(-6) ->  | I15: =VLOOKUP($A15, Reflow_FY22[], 11, FALSE)*10^(-6) ->  | J15: 6.9 | K15: =VLOOKUP($A15, Reflow_FY22[], 15, FALSE)*10^(-6) ->  | L15: 0.00 | M15: =O15-K15 ->  | N15: 18.6 | O15: =VLOOKUP($A15, Reflow_FY22[], 12, FALSE)*10^(-6) ->  | P15: 0% | Q15: 2017 | R15: 2037 | S15: 15.7 | T15: =VLOOKUP($A15, Reflow_FY22[], 13, FALSE)*10^(-6) ->  | U15: 0% | V15: 9.0 | W15: =VLOOKUP($A15, Reflow_FY22[], 14, FALSE)*10^(-6) ->  | X15: 0%
A16: 9043 | B16: AfDB | D16: Investing in Renewable Energy Project Preparation | E16: Africa | F16: CCM | G16: Reimbursable Grant | H16: =VLOOKUP($A16, Reflow_FY22[], 10, FALSE)*10^(-6) ->  | I16: =VLOOKUP($A16, Reflow_FY22[], 11, FALSE)*10^(-6) ->  | J16: 0.0 | K16: =VLOOKUP($A16, Reflow_FY22[], 15, FALSE)*10^(-6) ->  | L16: 0.00 | M16: =VLOOKUP($A16, Reflow_FY22[], 16, FALSE)*10^(-6) ->  | N16: 8.4 | O16: =VLOOKUP($A16, Reflow_FY22[], 12, FALSE)*10^(-6) ->  | P16: 0% | Q16: 2027 | R16: 2027 | S16: 10.0 | T16: =VLOOKUP($A16, Reflow_FY22[], 13, FALSE)*10^(-6) ->  | U16: 0% | V16: 4.9 | W16: =VLOOKUP($A16, Reflow_FY22[], 14, FALSE)*10^(-6) ->  | X16: 0%
A17: 9051 | B17: AfDB | D17: Moringa Agro-forestry Fund for Africa | E17: Africa | F17: LD | G17: Equity | H17: =VLOOKUP($A17, Reflow_FY22[], 10, FALSE)*10^(-6) ->  | I17: =VLOOKUP($A17, Reflow_FY22[], 11, FALSE)*10^(-6) ->  | J17: 0.0 | K17: =VLOOKUP($A17, Reflow_FY22[], 15, FALSE)*10^(-6) ->  | L17: 0.00 | M17: =VLOOKUP($A17, Reflow_FY22[], 16, FALSE)*10^(-6) ->  | N17: 4.4 | O17: =VLOOKUP($A17, Reflow_FY22[], 12, FALSE)*10^(-6) ->  | P17: 0% | Q17: 2024 | R17: 2028 | S17: 4.4 | T17: =VLOOKUP($A17, Reflow_FY22[], 13, FALSE)*10^(-6) ->  | U17: 0% | V17: 0.0 | W17: =VLOOKUP($A17, Reflow_FY22[], 14, FALSE)*10^(-6) ->  | X17: 0% | Y17: AfDB justification for low reflow: The investment instrument in Moringa is "equity" as such, it can not be considered as a loan with expectation of principal repayment. The value of the investments could fluctuate throughout the investment life until they are exited and proceeds of the sale will be returned back to the investors including GEF.
A18: 9563 | B18: WB | D18: Third South West Indian Ocean Fisheries Governance and Shared Growth Project (SWIOFish3) | E18: Asia | F18: BD IW | G18: Debt | H18: =VLOOKUP($A18, Reflow_FY22[], 10, FALSE)*10^(-6) ->  | I18: =VLOOKUP($A18, Reflow_FY22[], 11, FALSE)*10^(-6) ->  | J18: 0.0 | K18: =VLOOKUP($A18, Reflow_FY22[], 15, FALSE)*10^(-6) ->  | L18: 0.00 | M18: =VLOOKUP($A18, Reflow_FY22[], 16, FALSE)*10^(-6) ->  | N18: 5.3 | O18: =VLOOKUP($A18, Reflow_FY22[], 12, FALSE)*10^(-6) ->  | P18: 0% | Q18: 2024 | R18: 2057 | S18: 5.3 | T18: =VLOOKUP($A18, Reflow_FY22[], 13, FALSE)*10^(-6) ->  | U18: 0% | V18: 3.0 | W18: =VLOOKUP($A18, Reflow_FY22[], 14, FALSE)*10^(-6) ->  | X18: 0% | Y18: $47,812.65 is repaid but will be recorded for FY24
A19: 9370 | B19: CI | D19: Meloy Fund for Sustainable Small-Scale Fisheries | E19: Philippines, Indonesia | F19: BD | G19: Equity | H19: =VLOOKUP($A19, Reflow_FY22[], 10, FALSE)*10^(-6) ->  | I19: =VLOOKUP($A19, Reflow_FY22[], 11, FALSE)*10^(-6) ->  | J19: 0.0 | K19: =VLOOKUP($A19, Reflow_FY22[], 15, FALSE)*10^(-6) ->  | L19: 0.00 | M19: =VLOOKUP($A19, Reflow_FY22[], 16, FALSE)*10^(-6) ->  | N19: 8.3 | O19: =VLOOKUP($A19, Reflow_FY22[], 12, FALSE)*10^(-6) ->  | P19: 0% | Q19: 2028 | R19: 2031 | S19: 9.4 | T19: =VLOOKUP($A19, Reflow_FY22[], 13, FALSE)*10^(-6) ->  | U19: 0% | V19: 7.1 | W19: =VLOOKUP($A19, Reflow_FY22[], 14, FALSE)*10^(-6) ->  | X19: 0%
A20: 9719 | B20: UNEP | D20: Piloting Innovative Investments for Sustainable Landscapes | E20: Brazil, Indonesia, Liberia | F20: LD | G20: Debt | H20: =VLOOKUP($A20, Reflow_FY22[], 10, FALSE)*10^(-6) ->  | I20: =VLOOKUP($A20, Reflow_FY22[], 11, FALSE)*10^(-6) ->  | J20: 0.0 | K20: =VLOOKUP($A20, Reflow_FY22[], 15, FALSE)*10^(-6) ->  | L20: 0.00 | M20: =VLOOKUP($A20, Reflow_FY22[], 16, FALSE)*10^(-6) ->  | N20: 2.4 | O20: =VLOOKUP($A20, Reflow_FY22[], 12, FALSE)*10^(-6) ->  | P20: 0% | Q20: 2038 | R20: 2038 | S20: 2.2 | T20: =VLOOKUP($A20, Reflow_FY22[], 13, FALSE)*10^(-6) ->  | U20: 0% | V20: 2.5 | W20: =VLOOKUP($A20, Reflow_FY22[], 14, FALSE)*10^(-6) ->  | X20: 0%
A21: 9914 | B21: IUCN | D21: CPIC Conservation Finance Initiative - Scaling up and Demonstrating the Value of Blended Finance in Conservation | E21: Global | F21: BD LD | G21: Equity | H21: =VLOOKUP($A21, Reflow_FY22[], 10, FALSE)*10^(-6) -> 8.0 | I21: =VLOOKUP($A21, Reflow_FY22[], 11, FALSE)*10^(-6) -> 52.8 | J21: 0.0 | K21: =VLOOKUP($A21, Reflow_FY22[], 15, FALSE)*10^(-6) -> 0.0 | L21: 0.00 | M21: =VLOOKUP($A21, Reflow_FY22[], 16, FALSE)*10^(-6) -> 6.2 | N21: 5.2 | O21: =VLOOKUP($A21, Reflow_FY22[], 12, FALSE)*10^(-6) -> 6.2 | P21: 20% | Q21: 2032 | R21: 2032 | S21: 8.7 | T21: =VLOOKUP($A21, Reflow_FY22[], 13, FALSE)*10^(-6) -> 0.0 | U21: -100% | V21: 3.4 | W21: =VLOOKUP($A21, Reflow_FY22[], 14, FALSE)*10^(-6) -> 0.0 | X21: -100%
A22: 9085 | B22: DBSA | D22: Equity Fund for the Small Projects Independent Power Producer Procurement Programme (non-grant) | E22: South Africa | F22: CCM | G22: Equity | H22: =VLOOKUP($A22, Reflow_FY22[], 10, FALSE)*10^(-6) ->  | I22: =VLOOKUP($A22, Reflow_FY22[], 11, FALSE)*10^(-6) ->  | J22: 0.0 | K22: =VLOOKUP($A22, Reflow_FY22[], 15, FALSE)*10^(-6) ->  | L22: 0.00 | M22: =VLOOKUP($A22, Reflow_FY22[], 16, FALSE)*10^(-6) ->  | N22: 23.4 | O22: =VLOOKUP($A22, Reflow_FY22[], 12, FALSE)*10^(-6) ->  | P22: 0% | Q22: 2037 | R22: 2037 | S22: 27.0 | T22: =VLOOKUP($A22, Reflow_FY22[], 13, FALSE)*10^(-6) ->  | U22: 0% | V22: 0.0 | W22: =VLOOKUP($A22, Reflow_FY22[], 14, FALSE)*10^(-6) ->  | X22: 0% | Y22: Maintain last year's reporting, awaiting for major amendment
A23: 10330 | B23: WB | C23: GEF - 7 | D23: Wildlife Conservation Bond | E23: South Africa | F23: BD | G23: Reimbursable Grant | H23: =VLOOKUP($A23, Reflow_FY22[], 10, FALSE)*10^(-6) ->  | I23: =VLOOKUP($A23, Reflow_FY22[], 11, FALSE)*10^(-6) ->  | J23: 0.0 | K23: =VLOOKUP($A23, Reflow_FY22[], 15, FALSE)*10^(-6) ->  | L23: 0.00 | M23: =VLOOKUP($A23, Reflow_FY22[], 16, FALSE)*10^(-6) ->  | N23: 0.0 | O23: =VLOOKUP($A23, Reflow_FY22[], 12, FALSE)*10^(-6) ->  | P23: 0% | Q23: 2026 | R23: 2026 | S23: 13.8 | T23: =VLOOKUP($A23, Reflow_FY22[], 13, FALSE)*10^(-6) ->  | U23: 0% | V23: 0.0 | W23: =VLOOKUP($A23, Reflow_FY22[], 14, FALSE)*10^(-6) ->  | X23: 0% | Y23: Flipped best vs worst, just for financial perspective
A24: 10322 | B24: CI | D24: The Food Securities Fund: A fund to finance sustainable supply chains at scale in Emerging Markets | E24: Global | F24: BD LD CCM | G24: Equity | H24: =VLOOKUP($A24, Reflow_FY22[], 10, FALSE)*10^(-6) ->  | I24: =VLOOKUP($A24, Reflow_FY22[], 11, FALSE)*10^(-6) ->  | J24: 0.0 | K24: =VLOOKUP($A24, Reflow_FY22[], 15, FALSE)*10^(-6) ->  | L24: 0.00 | M24: =VLOOKUP($A24, Reflow_FY22[], 16, FALSE)*10^(-6) ->  | N24: 17.6 | O24: =VLOOKUP($A24, Reflow_FY22[], 12, FALSE)*10^(-6) ->  | P24: 0% | Q24: 2029 | R24: 2029 | S24: 20.0 | T24: =VLOOKUP($A24, Reflow_FY22[], 13, FALSE)*10^(-6) ->  | U24: 0% | V24: 14.6 | W24: =VLOOKUP($A24, Reflow_FY22[], 14, FALSE)*10^(-6) ->  | X24: 0%
A25: 10328 | B25: EBRD | D25: Circular Economy Regional Programme Initiative (Near Zero Waste) | E25: ECA | F25: CCM CW | G25: Debt | H25: =VLOOKUP($A25, Reflow_FY22[], 10, FALSE)*10^(-6) ->  | I25: =VLOOKUP($A25, Reflow_FY22[], 11, FALSE)*10^(-6) ->  | J25: 0.0 | K25: =VLOOKUP($A25, Reflow_FY22[], 15, FALSE)*10^(-6) ->  | L25: 0.00 | M25: =VLOOKUP($A25, Reflow_FY22[], 16, FALSE)*10^(-6) ->  | N25: 14.1 | O25: =VLOOKUP($A25, Reflow_FY22[], 12, FALSE)*10^(-6) ->  | P25: 0% | Q25: 2035 | R25: 2035 | S25: 14.1 | T25: =VLOOKUP($A25, Reflow_FY22[], 13, FALSE)*10^(-6) ->  | U25: 0% | V25: 8.3 | W25: =VLOOKUP($A25, Reflow_FY22[], 14, FALSE)*10^(-6) ->  | X25: 0%
A26: 10336 | B26: IADB | D26: Agtech for inclusion and sustainability: SP Ventures'Regional Fund (Agventures II) | E26: LAC | F26: CCM LD CW | G26: Equity | H26: =VLOOKUP($A26, Reflow_FY22[], 10, FALSE)*10^(-6) ->  | I26: =VLOOKUP($A26, Reflow_FY22[], 11, FALSE)*10^(-6) ->  | J26: 0.0 | K26: =VLOOKUP($A26, Reflow_FY22[], 15, FALSE)*10^(-6) ->  | L26: 0.00 | M26: =VLOOKUP($A26, Reflow_FY22[], 16, FALSE)*10^(-6) ->  | N26: 20.7 | O26: =VLOOKUP($A26, Reflow_FY22[], 12, FALSE)*10^(-6) ->  | P26: 0% | Q26: 2026 | R26: 2030 | S26: 33.8 | T26: =VLOOKUP($A26, Reflow_FY22[], 13, FALSE)*10^(-6) ->  | U26: =IFERROR((T26-S26)/S26, 0) -> 0% | V26: 6.6 | W26: =VLOOKUP($A26, Reflow_FY22[], 14, FALSE)*10^(-6) ->  | X26: 0%
A27: 10497 | B27: CI | D27: AGRI3 A Forest Conservation and Sustainable Agriculture Fund for Developing Countries | E27: Global | F27: BD LD | G27: Equity | H27: 13.5 | I27: =VLOOKUP($A27, Reflow_FY22[], 11, FALSE)*10^(-6) ->  | K27: =VLOOKUP($A27, Reflow_FY22[], 15, FALSE)*10^(-6) ->  | M27: =VLOOKUP($A27, Reflow_FY22[], 16, FALSE)*10^(-6) ->  | N27: 17.5 | O27: =VLOOKUP($A27, Reflow_FY22[], 12, FALSE)*10^(-6) ->  | P27: =IFERROR((O27-N27)/N27, 0) -> 0% | Q27: 2035 | R27: 2035 | S27: 18.5 | T27: =VLOOKUP($A27, Reflow_FY22[], 13, FALSE)*10^(-6) ->  | U27: =IFERROR((T27-S27)/S27, 0) -> 0% | V27: 13.5 | W27: =VLOOKUP($A27, Reflow_FY22[], 14, FALSE)*10^(-6) ->  | X27: =IFERROR((W27-V27)/V27, 0) -> 0%
A28: 10500 | B28: CI | D28: Livelihoods Carbon Fund 3 (LCF3) | E28: Global | F28: BD LD | G28: Equity | H28: 13.5 | I28: =VLOOKUP($A28, Reflow_FY22[], 11, FALSE)*10^(-6) ->  | K28: =VLOOKUP($A28, Reflow_FY22[], 15, FALSE)*10^(-6) ->  | M28: =VLOOKUP($A28, Reflow_FY22[], 16, FALSE)*10^(-6) ->  | N28: 17.8 | O28: =VLOOKUP($A28, Reflow_FY22[], 12, FALSE)*10^(-6) ->  | P28: =IFERROR((O28-N28)/N28, 0) -> 0% | Q28: 2041 | R28: 2041 | S28: 18.6 | T28: =VLOOKUP($A28, Reflow_FY22[], 13, FALSE)*10^(-6) ->  | U28: =IFERROR((T28-S28)/S28, 0) -> 0% | V28: 13.8 | W28: =VLOOKUP($A28, Reflow_FY22[], 14, FALSE)*10^(-6) ->  | X28: =IFERROR((W28-V28)/V28, 0) -> 0%
A29: 10667 | B29: AfDB | D29: COVID-19 Off-Grid Recovery Platform | E29: Africa | F29: CCM | G29: Debt | H29: =VLOOKUP($A29, Reflow_FY22[], 10, FALSE)*10^(-6) ->  | I29: =VLOOKUP($A29, Reflow_FY22[], 11, FALSE)*10^(-6) ->  | J29: 0.0 | K29: =VLOOKUP($A29, Reflow_FY22[], 15, FALSE)*10^(-6) ->  | L29: =IFERROR((K29-#REF!), 0) -> 0.00 | M29: =VLOOKUP($A29, Reflow_FY22[], 16, FALSE)*10^(-6) ->  | N29: 13.0 | O29: =VLOOKUP($A29, Reflow_FY22[], 12, FALSE)*10^(-6) ->  | P29: =IFERROR((O29-N29)/N29, 0) -> 0% | Q29: 2026 | R29: 2028 | S29: 13.0 | T29: =VLOOKUP($A29, Reflow_FY22[], 13, FALSE)*10^(-6) ->  | U29: =IFERROR((T29-S29)/S29, 0) -> 0% | V29: 7.8 | W29: =VLOOKUP($A29, Reflow_FY22[], 14, FALSE)*10^(-6) ->  | X29: =IFERROR((W31-#REF!)/#REF!, 0) -> 0%
A30: 11066 | B30: IADB | C30: GEF-8 | D30: Yield Lab Opportunity Fund I: Accelerating technology and local innovation for sustainable and decarbonized food systems in Latin America and the Caribbean. | E30: LAC | F30: CCM LD CW | G30: Equity | H30: 6.0 | I30: 44.0 | K30: =VLOOKUP($A30, Reflow_FY22[], 15, FALSE)*10^(-6) ->  | M30: =VLOOKUP($A30, Reflow_FY22[], 16, FALSE)*10^(-6) ->  | O30: =VLOOKUP($A30, Reflow_FY22[], 12, FALSE)*10^(-6) ->  | Q30: 2034 | R30: 2034 | T30: =VLOOKUP($A30, Reflow_FY22[], 13, FALSE)*10^(-6) ->  | W30: =VLOOKUP($A30, Reflow_FY22[], 14, FALSE)*10^(-6) -> 
A31: Total | H31: =SUM(H2:H30) ->  | I31: =SUM(I2:I30) ->  | J31: =SUM(J2:J29) -> 49.4 | K31: =SUM(K2:K30) ->  | L31: =SUM(L2:L29) -> 0.0 | M31: =SUM(M2:M30) ->  | N31: =SUM(N2:N30) -> 327.1 | O31: =SUM(O2:O30) ->  | P31: =IFERROR((O31-N31)/N31, 0) -> 0.0% | S31: =SUM(S2:S30) -> 358.13 | T31: =SUM(T2:T30) ->  | U31: =IFERROR((T31-S31)/S31, 0) -> 0% | V31: =SUM(V2:V30) -> 149.9 | W31: =SUM(W2:W30) ->  | X31: =IFERROR((W31-V31)/V31, 0) -> 0%
B32: *Estimated investment reflows are based on original project documents and additional investment information from Agencies. | O32: =O31-N31 -> 
H33: =+H31+SUM(H38:H44) ->  | I33: =+I31+SUM(I38:I40) ->  | J33: =+J31+SUM(J38:J40) -> 49.4 | O33: =O31+ SUM(O38:O44) -> 
H35: =SUM(H13:H30) ->  | I35: =SUM(I13:I30) ->  | W35: =376.7+128 -> 504.7
H36: =H35-H13-H22+H38 ->  | I36: =I35-I13-I22+I38 ->  | J36: =I36/H36 -> 
A38: 11062 | B38: ADB | C38: GEF-8 | D38: Natural Capital Fund (NCF): Investing in Nature-Positive Agri-Food Enterprises in Asia and the Pacific | E38: Asia | F38: LD CW | G38: Equity | H38: 13.8 | I38: 646.4 | O38: 20.00
A39: 11064 | B39: DBSA | D39: Private Sector Energy Efficiency Programme Phase 2 (PSEEP2) | E39: AFR | F39: CCM | G39: Risk Mitigation | H39: 12.8 | I39: 509.0 | O39: 12.00
A40: 11068 | B40: WB | D40: Guarantee Mechanism for Renewable Biogas in India | E40: India | F40: CCM | G40: Risk Mitigation | H40: 13.8 | I40: 705.0 | O40: 2.30
A41: 11323 | B41: WB | D41: Indonesia Coral Bond | E41: Indonesia | F41: BD | G41: Reimbursable Grant | H41: 13.8 | I41: 156.1 | O41: 0
A42: 11324 | B42: IADB | D42: Innovative use of financial instruments for Biodiversity Conservation and Restoration in Latin America and the Caribbean | E42: LAC | F42: BD | G42: Risk Mitigation | H42: 39.0 | I42: 641.0 | O42: 16.70
A43: 11326 | B43: WB | D43: IFC/GEF Green Global Supply Chain Decarbonization Platform | E43: Global | F43: CCM | G43: Debt | H43: 13.8 | I43: 150.0 | O43: 13.70
A44: 11327 | B44: FUNBIO | D44: Living Amazon Mechanism | E44: Brazil | F44: BD | G44: Reimbursable Grant | H44: 6.0 | I44: 46.6 | O44: 6.00

Sheet Table 2
A2: GEF ID | B2: Agency | C2: GEF Phase | D2: Program Title | E2: Country/ Countries | F2: Focal Area(s) | G2: Type of Non-Grant Instrument | H2: GEF Non-Grant Investment Amount (million USD) | I2: Investment Co-financing (million USD)
A3: 11062 | B3: ADB | C3: GEF-8 | D3: Natural Capital Fund (NCF): Investing in Nature-Positive Agri-Food Enterprises in Asia and the Pacific | E3: Asia | F3: LD CW | G3: Equity | H3: 15.0 | I3: 646.4
A4: 11064 | B4: DBSA | D4: Private Sector Energy Efficiency Programme Phase 2 (PSEEP2) | E4: AFR | F4: CCM | G4: Risk Mitigation | H4: 16.3 | I4: 509.0
A5: 11068 | B5: WB | D5: Guarantee Mechanism for Renewable Biogas in India | E5: India | F5: CCM | G5: Guarantee | H5: 15.0 | I5: 705.0
A6: 11323 | B6: WB | D6: Indonesia Coral Bond | E6: Indonesia | F6: BD | G6: Reimbursable Grant | H6: 15.0 | I6: 156.1
A7: 11324 | B7: IADB | D7: Innovative use of financial instruments for Biodiversity Conservation and Restoration in Latin America and the Caribbean | E7: LAC | F7: BD | G7: Risk Mitigation | H7: 43.8 | I7: 641.0
A8: 11326 | B8: WB | D8: IFC/GEF Green Global Supply Chain Decarbonization Platform | E8: Global | F8: CCM | G8: Debt | H8: 16.0 | I8: 150.0
A9: 11327 | B9: FUNBIO | D9: Living Amazon Mechanism | E9: Brazil | F9: BD | G9: Reimbursable Grant | H9: 6.9 | I9: 46.6
A10: Total | H10: =SUM(H3:H9) -> 128.0 | I10: =SUM(I3:I9) -> 2,854.1
H12: 7

Sheet Graph
B1: Number of Projects w. reflow | C1: Number of Projects w/o reflow | D1: Actual Reflow | E1: Estimated Reflow | F1: Estimated Reflow | G1: Amount invested w/o reflow
A3: GEF-1 | B3: 1 | C3: 6 | D3: 1,000,000 | E3: 1,000,000 | F3: =E3-D3 -> 0 | G3: 68,444,319
A4: GEF-2 | B4: 1 | C4: 20 | D4: 10,300,000 | E4: 10,300,000 | F4: =E4-D4 -> 0 | G4: 114,237,200
A5: GEF-3 | B5: 3 | C5: 24 | D5: 25,700,000 | E5: 25,700,000 | F5: 0 | G5: 148,004,000
A6: GEF-4 | B6: 1 | C6: 5 | D6: 10,600,000 | E6: 10,600,000 | F6: 0 | G6: 50,988,545
A7: GEF-5 | B7: 5 | C7: 12 | D7: 7,800,000 | E7: 74,700,000 | F7: 66,900,000 | G7: 73,175,466
A8: GEF-6 | B8: 10 | C8: 1 | D8: 7,300,000 | E8: 99,300,000 | F8: 92,000,000 | G8: 1,200,000
A9: GEF-7 | B9: 10 | C9: 0 | D9: 0 | E9: 132,620,000 | F9: 132,620,000 | G9: 0
A10: GEF-8 | B10: 8 | C10: 0 | D10: 0 | E10: =50000000+49600000 -> 99,600,000 | F10: 99,600,000 | G10: 2,380,000
D14: GEF - 1 | E14: 68444319
D15: GEF - 2 | E15: 114237200
D16: GEF - 3 | E16: 148004000
D17: GEF - 4 | E17: 50988545
D18: GEF - 5 | E18: 73175466
D19: GEF - 6 | E19: 1200000
D20: GEF - 7
D21: Pilot Phase | E21: 16000000
G25: 100.8
G26: 27.5
D38: =+D37:CD38 -> 0

Sheet Annex
A1: GEF ID | B1: Agency | C1: Region | D1: Country | E1: Project Status | F1: Title | G1: GEF Phase | H1: CEO Approval | I1: GEF Amount ($M)** | J1: Co-Financing ($M) | K1: Total Project Cost ($M) | L1: Co-financing Ratio | M1: Type of Non-Grant Instrument (summarized)
H2: /Endorsement date | N2: Investment | O2: Agency Fee | P2: PPG | Q2: PPG Agency fee
A3: 13 | B3: UNDP | C3: Asia | D3: Thailand | E3: Financially Closed | F3: Removal of Barriers to Biomass Power Generation and Co-generation | G3: GEF - 2 | H3: 2001-01-22 | I3: 7.2 | J3: 66.4 | K3: 73.6 | L3: 9.2 | M3: Risk Mitigation | N3: 6,805,000 | O3: 382,000 | P3: 25,000 | R3: =SUM(N3:Q3)-I3*10^6 -> 12,000
A4: 91 | B4: WB | C4: CEX | D4: Global | E4: Project Implemented | F4: Small and Medium Scale Enterprise Program (IFC) | G4: GEF - 1 | H4: 1994-07-01 | I4: 4.3 | J4: 15.2 | K4: 19.5 | L4: 3.5 | M4: Mixed | N4: 4,300,000 | O4: 0 | R4: =SUM(N4:Q4)-I4*10^6 -> 0
A5: 111 | B5: WB | C5: ECA | D5: Hungary | E5: Project Implemented | F5: Energy Efficiency Co-Financing Program | G5: GEF - 1 | H5: 1997-05-10 | I5: 5 | J5: 20 | K5: 25 | L5: 4 | M5: Risk Mitigation | N5: 5,000,000 | R5: 0
A6: 112 | B6: WB | C6: CEX | D6: India, Kenya, Morocco, Global | E6: Project Implemented | F6: Photovoltaic Market Transformation Initiative (IFC) | G6: GEF - 1 | H6: 1998-06-16 | I6: 30.4 | J6: 90 | K6: 120.4 | L6: 3 | M6: Mixed | N6: 30,000,000 | P6: 375,000 | R6: (25,000)
A7: 135 | B7: WB | C7: CEX | D7: Global | E7: Financially Closed | F7: Small and Medium Scale Enterprise Program (IFC, first replenishment) | G7: GEF - 1 | H7: 1997-02-09 | I7: 16.5 | J7: 36 | K7: 52.5 | L7: 2.2 | M7: Mixed | N7: 16,500,000 | R7: 0
A8: 267 | B8: UNDP | C8: CEX | D8: Egypt, Palestinian Authority, Regional | E8: Financially Closed | F8: Energy Efficiency Improvements and Greenhouse Gas Reductions | G8: GEF - 1 | H8: 1998-06-15 | I8: 6.4 | J8: 1.8 | K8: 8.1 | L8: 0.3 | M8: Risk Mitigation | N8: 6,360,000 | R8: (40,000)
A9: 314 | B9: UNDP | C9: LAC | D9: Bolivia | E9: Financially Closed | F9: A Program for Rural Electrification with Renewable Energy Using the Popular Participation Law | G9: GEF - 1 | H9: 1999-05-27 | I9: 4.2 | J9: 4.1 | K9: 8.3 | L9: 1 | M9: Debt | N9: 3,983,719 | P9: 237,446 | R9: 21,165
A10: 377 | B10: UNDP | C10: AFR | D10: Sudan | E10: Financially Closed | F10: Community Based Rangeland Rehabilitation for Carbon Sequestration | G10: Pilot Phase | H10: 1994-08-01 | I10: 1.5 | J10: 0.1 | K10: 1.6 | L10: 0.1 | M10: Debt | N10: 1,500,000 | R10: 0
A11: 386 | B11: UNDP | C11: Asia | D11: India | E11: Financially Closed | F11: Optimizing Development of Small Hydel Resources in Hilly Areas | G11: Pilot Phase | H11: 1991-12-01 | I11: 7.5 | J11: 7.1 | K11: 14.6 | L11: 1 | M11: Debt | N11: 7,500,000 | R11: 0
A12: 391 | B12: UNDP | C12: Asia | D12: Pakistan | E12: Financially Closed | F12: Fuel Efficiency in the Road Transport Sector | G12: Pilot Phase | H12: 1992-05-01 | I12: 7 | J12: 0 | K12: 7 | L12: 0 | M12: Debt | N12: 7,000,000 | O12: 0 | R12: 0
A13: 448 | B13: UNDP | C13: Asia | D13: Malaysia | E13: Financially Closed | F13: Industrial Energy Efficiency Improvement Project | G13: GEF - 1 | H13: 1999-06-07 | I13: 7.3 | J13: 12.6 | K13: 19.9 | L13: 1.7 | M13: Debt | N13: 7,300,600 | R13: 600
A14: 540 | B14: WB | C14: Asia | D14: Thailand | E14: Financially Closed | F14: Building Chiller Replacement Program | G14: GEF - 2 | H14: 2001-04-22 | I14: 2.5 | J14: 88 | K14: 90.5 | L14: 35.2 | M14: Debt | N14: 2,500,000 | R14: 0
A15: 622 | B15: UNDP | C15: Asia | D15: China | E15: Project Implemented | F15: Energy Conservation and GHG Emission Reduction in Chinese Township and Village Enterprises (TVE), Phase II | G15: GEF - 2 | H15: 2000-10-10 | I15: 8 | J15: 10.6 | K15: 18.5 | L15: 1.3 | M15: Debt | N15: 7,992,000 | R15: (8,000)
A16: 641 | B16: UNDP | C16: AFR | D16: Malawi | E16: Financially Closed | F16: Barrier Removal to Renewable Energy Programme | G16: GEF - 2 | H16: 2000-10-14 | I16: 3.4 | J16: 7.3 | K16: 10.7 | L16: 2.1 | M16: Risk Mitigation | N16: 3,353,000 | P16: 64,800 | R16: 17,800
A17: 646 | B17: UNDP | C17: AFR | D17: Morocco | E17: Financially Closed | F17: Market Development for Solar Water Heaters | G17: GEF - 2 | H17: 2000-04-23 | I17: 3 | J17: 2.4 | K17: 5.4 | L17: 0.8 | M17: Risk Mitigation | N17: 2,965,000 | R17: (35,000)
A18: 658 | B18: UNDP | C18: ECA | D18: Slovenia | E18: Financially Closed | F18: Removing Barriers to the Increased Use of Biomass as an Energy Source | G18: GEF - 2 | H18: 2001-02-04 | I18: 4.4 | J18: 7.9 | K18: 12.3 | L18: 1.8 | M18: Debt | N18: 4,300,000 | P18: 98,000 | R18: (2,000)
A19: 660 | B19: UNDP | C19: AFR | D19: Sudan | E19: Financially Closed | F19: Barrier Removal to Secure PV Market Penetration in Semi-Urban Sudan | G19: GEF - 2 | H19: 1999-03-04 | I19: 0.8 | J19: 1 | K19: 1.7 | L19: 1.3 | M19: Risk Mitigation | N19: 725,000 | P19: 25,000 | R19: (50,000)
A20: 786 | B20: WB | C20: ECA | D20: Poland | E20: Financially Closed | F20: Krakow Energy Efficiency Project | G20: GEF - 2 | H20: 2004-09-20 | I20: 12.1 | J20: 88 | K20: 100.1 | L20: 7.3 | M20: Risk Mitigation | N20: 11,000,000 | O20: 867,000 | P20: 184,250 | R20: (48,750)
A21: 843 | B21: UNDP | C21: LAC | D21: Chile | E21: Financially Closed | F21: Removal of Barriers to Rural Electrification with Renewable Energy | G21: GEF - 2 | H21: 2001-06-27 | I21: 6.4 | J21: 26.3 | K21: 32.8 | L21: 4.1 | M21: Risk Mitigation | N21: 5,984,900 | O21: 382,000 | P21: 82,400 | R21: 49,300
A22: 882 | B22: UNDP | C22: ECA | D22: Croatia | E22: Financially Closed | F22: Removing Barriers to Improving Energy Efficiency of the Residential and Service Sectors | G22: GEF - 2 | H22: 2004-08-08 | I22: 5 | J22: 8.7 | K22: 13.6 | L22: 1.7 | M22: Risk Mitigation | N22: 4,390,000 | O22: 382,000 | P22: 200,800 | R22: (27,200)
A23: 883 | B23: WB | C23: ECA | D23: Romania | E23: Financially Closed | F23: Energy Efficiency Project | G23: GEF - 2 | H23: 2002-08-19 | I23: 11.4 | J23: 40 | K23: 51.4 | L23: 3.5 | M23: Debt | N23: 10,000,000 | O23: 1,039,000 | P23: 350,000 | R23: (11,000)
A24: 935 | B24: UNDP | C24: AFR | D24: Namibia | E24: Financially Closed | F24: Barrier Removal to Namibian Renewable Energy Programme, Phase I | G24: GEF - 2 | H24: 2003-01-12 | I24: 2.9 | J24: 4.7 | K24: 7.7 | L24: 1.6 | M24: Risk Mitigation | N24: 2,600,000 | O24: 242,000 | P24: 103,000 | R24: 45,000
A25: 944 | B25: WB | C25: ECA | D25: Croatia | E25: Financially Closed | F25: Energy Efficiency Project | G25: GEF - 2 | H25: 2003-08-24 | I25: 7.8 | J25: 23.4 | K25: 31.2 | L25: 3 | M25: Risk Mitigation | N25: 7,000,000 | O25: 701,000 | P25: 84,410 | R25: (14,590)
A26: 1061 | B26: WB | C26: LAC | D26: Peru | E26: Financially Closed | F26: Inka Terra: An Innovative Partnership for Self-Financing Biodiversity Conservation & Community Development | G26: GEF - 3 | H26: 2003-12-18 | I26: 0.9 | J26: 11.4 | K26: 12.3 | L26: 12.7 | M26: Debt | N26: 725,000 | O26: 146,000 | P26: 25,000 | R26: (4,000)
A27: 1137 | B27: UNDP | C27: ECA | D27: Georgia | E27: Financially Closed | F27: Promoting the Use of Renewable Energy Resources for Local Energy Supply | G27: GEF - 3 | H27: 2004-02-10 | I27: 5.1 | J27: 8.7 | K27: 13.8 | L27: 1.7 | M27: Debt | N27: 4,300,000 | O27: 382,000 | P27: 411,500 | R27: (6,500)
A28: 1198 | B28: UNDP | C28: ECA | D28: Belarus | E28: Financially Closed | F28: Biomass Energy for Heating and Hot Water Supply | G28: GEF - 3 | H28: 2003-06-25 | I28: 3.8 | J28: 5.6 | K28: 9.3 | L28: 1.5 | M28: Debt | N28: 3,129,000 | O28: 382,000 | P28: 245,000 | R28: (44,000)
A29: 1199 | B29: UNDP | C29: Asia | D29: India | E29: Financially Closed | F29: Removal of Barriers to Biomass Power Generation, Part I | G29: GEF - 3 | H29: 2005-01-12 | I29: 6 | J29: 33.5 | K29: 39.5 | L29: 5.6 | M29: Risk Mitigation | N29: 5,650,000 | O29: 382,000 | R29: 32,000
A30: 1237 | B30: WB | C30: Asia | D30: China | E30: Financially Closed | F30: Energy Conservation Project, Phase II | G30: GEF - 2 | H30: 2002-09-29 | I30: 29.1 | J30: 255.2 | K30: 284.3 | L30: 8.8 | M30: Risk Mitigation | N30: 26,000,000 | O30: 3,100,000 | R30: 0
A31: 1245 | B31: UNDP | C31: AFR | D31: Lesotho | E31: Financially Closed | F31: Renewable Energy-based Rural Electrification | G31: GEF - 3 | H31: 2006-09-21 | I31: 3.2 | J31: 4.3 | K31: 7.5 | L31: 1.3 | M31: Risk Mitigation | N31: 2,500,000 | O31: 382,000 | P31: 320,000 | R31: 2,000
A32: 1264 | B32: UNDP | C32: Asia | D32: Philippines | E32: Financially Closed | F32: Capacity Building to Remove Barriers to Renewable Energy Development | G32: GEF - 2 | H32: 2002-09-23 | I32: 6.8 | J32: 18.3 | K32: 25.2 | L32: 2.7 | M32: Risk Mitigation | N32: 6,143,000 | O32: 382,000 | P32: 305,000 | R32: 30,000
A33: 1265 | B33: UNDP | C33: ECA | D33: Poland | E33: Financially Closed | F33: Polish Energy Efficiency Motors Programme | G33: GEF - 2 | H33: 2003-11-04 | I33: 4.9 | J33: 17.7 | K33: 22.6 | L33: 3.6 | M33: Debt | N33: 4,304,300 | O33: 382,000 | P33: 195,700 | R33: (18,000)
A34: 1291 | B34: WB | C34: ECA | D34: Croatia | E34: Financially Closed | F34: Renewable Energy Resources Project | G34: GEF - 2 | H34: 2005-05-22 | I34: 6.7 | J34: 21.4 | K34: 28.2 | L34: 3.2 | M34: Mixed | N34: 5,500,000 | O34: 890,000 | P34: 350,000 | R34: 40,000
A35: 1316 | B35: WB | C35: ECA | D35: Hungary | E35: Financially Closed | F35: Energy Efficiency Co-Financing Program 2 (HEECP2) | G35: GEF - 2 | H35: 2001-10-02 | I35: 0.9 | J35: 93.2 | K35: 94.1 | L35: 99.1 | M35: Risk Mitigation | N35: 700,000 | O35: 240,000 | R35: 40,000
A36: 1335 | B36: UNDP | C36: AFR | D36: Egypt | E36: Project Implemented | F36: Bioenergy for Sustainable Rural Development | G36: GEF - 3 | H36: 2008-07-13 | I36: 3.6 | J36: 13.3 | K36: 16.9 | L36: 3.6 | M36: Debt | N36: 3,000,000 | O36: 300,974 | P36: 344,150 | R36: 45,124
A37: 1358 | B37: UNEP | C37: AFR | D37: Zambia | E37: Financially Closed | F37: Renewable Energy-based Electricity Generation for Isolated Mini-grids | G37: GEF - 3 | H37: 2005-11-15 | I37: 3.7 | J37: 4.6 | K37: 8.2 | L37: 1.2 | M37: Debt | N37: 2,950,000 | O37: 382,000 | P37: 325,000 | R37: (43,000)
A38: 1361 | B38: UNEP | C38: SIDS | D38: Cuba | E38: Financially Closed | F38: Generation and Delivery of Renewable Energy Based Modern Energy Services in Cuba; the case of Isla de la Juventud | G38: GEF - 3 | H38: 2005-03-20 | I38: 6 | J38: 10.5 | K38: 16.5 | L38: 1.7 | M38: Debt | N38: 5,337,000 | O38: 382,000 | P38: 325,000 | R38: 44,000
A39: 1413 | B39: UNDP | C39: LAC | D39: Honduras | E39: Financially Closed | F39: Energy Efficiency Measures in the Honduran Commercial and Industry Sectors | G39: GEF - 3 | H39: 2004-01-15 | I39: 1.1 | J39: 1.6 | K39: 2.8 | L39: 1.4 | M39: Risk Mitigation | N39: 975,000 | O39: 146,000 | P39: 25,000 | R39: 46,000
A40: 1532 | B40: WB | C40: Asia | D40: Philippines | E40: Financially Closed | F40: Electric Cooperative System Loss Reduction Project | G40: GEF - 3 | H40: 2004-04-11 | I40: 13.6 | J40: 50.5 | K40: 64.1 | L40: 3.7 | M40: Risk Mitigation | N40: 12,000,000 | O40: 1,202,000 | P40: 350,000 | R40: (48,000)
A41: 1541 | B41: WB | C41: ECA | D41: Czech Republic, Estonia, Latvia, Lithuania, Slovak Republic, Regional | E41: Project Implemented | F41: Commercializing Energy Efficiency Finance (CEEF) - Tranche I | G41: GEF - 2 | H41: 2002-10-05 | I41: 12.5 | J41: 20.9 | K41: 33.3 | L41: 1.7 | M41: Risk Mitigation | N41: 11,250,000 | O41: 1,200,000 | R41: (50,000)
A42: 1571 | B42: WB | C42: LAC | D42: Belize, Bolivia, Costa Rica, Ecuador, El Salvador, Mexico, Panama, Paraguay, Peru, Regional | E42: Financially Closed | F42: EcoEnterprises Fund | G42: GEF - 2 | H42: 2002-04-18 | I42: 1.1 | J42: 9 | K42: 10.1 | L42: 7.9 | M42: Debt | N42: 1,000,000 | O42: 146,000 | R42: 46,000
A43: 1609 | B43: UNEP | C43: CEX | D43: Belize, Cambodia, Cameroon, Costa Rica, Ghana, Guatemala, Indonesia, Nicaragua, Panama, Philippines, Tanzania, Thailand, Viet Nam, Zambia, Global | E43: Project Implemented | F43: Renewable Energy Enterprise Development - Seed Capital Access Facility | G43: GEF - 3 | H43: 2007-05-30 | I43: 9.2 | J43: 40.5 | K43: 49.7 | L43: 4.4 | M43: Equity | N43: 8,400,000 | O43: 480,000 | P43: 300,000 | R43: (20,000)
A44: 1646 | B44: UNDP | C44: ECA | D44: Russian Federation | E44: Financially Closed | F44: Cost Effective Energy Efficiency Measures in the Russian Educational Sector | G44: GEF - 2 | H44: 2002-06-09 | I44: 1.1 | J44: 1.7 | K44: 2.9 | L44: 1.5 | M44: Debt | N44: 975,000 | O44: 146,000 | P44: 25,000 | R44: 46,000
A45: 2000 | B45: WB | C45: CEX | D45: Global | E45: Project Implemented | F45: Environmental Business Finance Program (EBFP) | G45: GEF - 3 | H45: 2004-03-23 | I45: 20 | J45: 80 | K45: 100 | L45: 4 | M45: Risk Mitigation | N45: 20,000,000 | O45: 0 | R45: 0
A46: 2105 | B46: UNDP | C46: ECA | D46: Croatia | E46: Financially Closed | F46: Conservation and Sustainable Use of Biodiversity in the Dalmatian Coast through Greening Coastal Development | G46: GEF - 3 | H46: 2006-09-27 | I46: 8 | J46: 24.3 | K46: 32.3 | L46: 3.1 | M46: Risk Mitigation | N46: 6,988,000 | O46: 657,855 | P46: 321,500 | R46: (32,645)
A47: 2108 | B47: WB | C47: Asia | D47: Philippines | E47: Financially Closed | F47: Electric Cooperative System Loss Reduction Project | G47: GEF-3 | H47: 2009-04-12 | I47: 5.8 | J47: 20 | K47: 25.8 | L47: 3.4 | M47: Risk Mitigation | N47: 5300000 | O47: 477000 | R47: (23,000)
A48: 2111 | B48: WB | C48: ECA | D48: Russian Federation | E48: Project Implemented | F48: Russian Sustainable Energy Finance Program | G48: GEF - 3 | H48: 2005-03-16 | I48: 7.6 | J48: 23.3 | K48: 30.9 | L48: 3 | M48: Risk Mitigation | N48: 7,000,000 | O48: 630,000 | R48: 30,000
A49: 2117 | B49: WB | C49: ECA | D49: Bulgaria | E49: Financially Closed | F49: Energy Efficiency Project | G49: GEF - 3 | H49: 2005-02-13 | I49: 11.1 | J49: 39.5 | K49: 50.7 | L49: 3.5 | M49: Risk Mitigation | N49: 10,000,000 | O49: 841,000 | P49: 300,000 | R49: 41,000
A50: 2119 | B50: UNEP | C50: AFR | D50: Eritrea, Ethiopia, Kenya, Rwanda, Tanzania, Uganda, Regional | E50: Financially Closed | F50: African Rift Geothermal Development Facility (ARGeo) | G50: GEF - 3 | H50: 2012-07-24 | I50: 20.7 | J50: 55.6 | K50: 76.3 | L50: 2.7 | M50: Debt | N50: 17,750,000 | O50: 1,660,500 | P50: 1,300,000 | R50: 10,500
A51: 2174 | B51: WB | C51: ECA | D51: Czech Republic, Estonia, Latvia, Lithuania, Slovak Republic, Regional | E51: Project Implemented | F51: Commercializing Energy Efficiency Finance (CEEF) - Tranche II | G51: GEF - 2 | H51: 2003-08-10 | I51: 9.9 | J51: 57 | K51: 66.9 | L51: 5.8 | M51: Risk Mitigation | N51: 9,850,000 | R51: (50,000)
A52: 2256 | B52: UNDP | C52: AFR | D52: Namibia | E52: Financially Closed | F52: Barrier Removal to Namibian Renewable Energy Programme (NAMREP), Phase II | G52: GEF - 3 | H52: 2007-05-30 | I52: 2.8 | J52: 7.6 | K52: 10.5 | L52: 2.7 | M52: Risk Mitigation | N52: 2,600,000 | O52: 234,000 | R52: 34,000
A53: 2531 | B53: WB | C53: ECA | D53: North Macedonia | E53: Financially Closed | F53: Sustainable Energy Program | G53: GEF - 3 | H53: 2006-11-26 | I53: 6.4 | J53: 28.8 | K53: 35.2 | L53: 4.5 | M53: Debt | N53: 5,500,000 | O53: 526,500 | P53: 350,000 | R53: (23,500)
A54: 2619 | B54: UNEP | C54: ECA | D54: Belarus, Bulgaria, Kazakhstan, North Macedonia, Romania, Russian Federation, Serbia, Ukraine, Regional | E54: Financially Closed | F54: Financing Energy Efficiency and Renewable Energy Investments for Climate Change Mitigation | G54: GEF - 3 | H54: 2006-10-24 | I54: 3.3 | J54: 9.3 | K54: 12.5 | L54: 2.8 | M54: Mixed | N54: 3,000,000 | O54: 270,000 | R54: (30,000)
A55: 2624 | B55: WB | C55: Asia | D55: China | E55: Project Implemented | F55: China Utility-Based Energy Efficiency Finance Program (CHUEE) | G55: GEF - 3 | H55: 2006-03-09 | I55: 18 | J55: 130.4 | K55: 148.4 | L55: 7.3 | M55: Risk Mitigation | N55: 16,500,000 | O55: 1,485,000 | R55: (15,000)
A56: 2670 | B56: UNDP | C56: LAC | D56: Costa Rica, El Salvador, Guatemala, Honduras, Nicaragua, Regional | E56: Financially Closed | F56: Central American Markets for Biodiversity (CAMBio): Mainstreaming Biodiversity Conservation and Sustainable use within Micro, Small and Medium-sized Enterprise Development and Financing | G56: GEF - 3 | H56: 2006-03-19 | I56: 11 | J56: 17.8 | K56: 28.8 | L56: 1.6 | M56: Risk Mitigation | N56: 10,225,000 | O56: 786,500 | R56: 11,500
A57: 2939 | B57: UNDP | C57: CEX | D57: Global | E57: Financially Closed | F57: Solar Water Heating Market Transformation and Strengthening Initiative, Phase 1 | G57: GEF - 3 | H57: 2008-07-28 | I57: 13.4 | J57: 19.2 | K57: 32.5 | L57: 1.4 | M57: Risk Mitigation | N57: 12,000,000 | O57: 1,105,650 | P57: 285,000 | R57: (9,350)
A58: 2941 | B58: UNDP | C58: LAC | D58: Brazil | E58: Project Implemented | F58: Market Transformation for Energy Efficiency in Buildings | G58: GEF - 4 | H58: 2009-07-28 | I58: 15.1 | J58: 64.8 | K58: 79.9 | L58: 4.3 | M58: Mixed | N58: 13,500,000 | O58: 1,339,450 | P58: 250,000 | R58: (10,550)
A59: 2944 | B59: WB | C59: SIDS | D59: Fiji, Marshall Islands, Papua New Guinea, Solomon Islands, Vanuatu, Regional | E59: Under Implementation | F59: Sustainable Energy Financing | G59: GEF - 3 | H59: 2007-05-17 | I59: 10.3 | J59: 21.6 | K59: 31.9 | L59: 2.1 | M59: Risk Mitigation | N59: 9,480,000 | O59: 853,200 | R59: 33,200
A60: 3005 | B60: IADB | C60: LAC | D60: Brazil, Mexico, Nicaragua, Panama, Regional | E60: Project Implemented | F60: CleanTech Fund | G60: GEF - 3 | H60: 2006-02-06 | I60: 1.1 | J60: 61.2 | K60: 62.3 | L60: 56.4 | M60: Equity | N60: 995,000 | O60: 89,550 | R60: (15,450)
A61: 3558 | B61: WB | C61: AFR | D61: Cabo Verde, Liberia, Senegal, Sierra Leone, Regional | E61: Financially Closed | F61: SP-SFIF: West Africa Regional Fisheries Program (WARFP) | G61: GEF - 3 | H61: 2009-08-31 | I61: 11.5 | J61: 121 | K61: 132.5 | L61: 10.6 | M61: Debt | N61: 10,000,000 | O61: 1,000,000 | P61: 450,000 | R61: (50,000)
A62: 3597 | B62: EBRD | C62: ECA | D62: Russian Federation | E62: Under Implementation | F62: RUS Improving Urban Housing Efficiency in the Russian Federation | G62: GEF - 4 | H62: 2010-11-18 | I62: 10.8 | J62: 86.7 | K62: 97.5 | L62: 8 | M62: Debt | N62: 9,670,000 | O62: 967,000 | P62: 165,000 | Q62: 16,500 | R62: 18,500
A63: 3626 | B63: UNEP | C63: SIDS | D63: Marshall Islands, Micronesia, Palau, Regional | E63: Financially Closed | F63: PAS: The Micronesia Challenge : Sustainable Finance Systems for Island Protected Area Management - under the GEF Pacific Alliance for Sustainability | G63: GEF - 4 | H63: 2010-05-27 | I63: 6 | J63: 10.9 | K63: 16.9 | L63: 1.8 | M63: Debt | N63: 5,454,545 | O63: 545,454 | R63: (1)
A64: 3766 | B64: IADB | C64: LAC | D64: Antigua and Barbuda, Barbados, Costa Rica, Guatemala, Guyana, Honduras, Panama,St. Lucia, Suriname, Regional | E64: Financially Closed | F64: Testing a Prototype Caribbean Regional Fund for Wastewater Management (CReW) | G64: GEF - 4 | H64: 2010-12-01 | I64: 22.4 | J64: 251.5 | K64: 273.9 | L64: 11.2 | M64: Debt | N64: 20,000,000 | O64: 2,000,000 | P64: 380,000 | Q64: 38,000 | R64: 18,000
A65: 4176 | B65: IADB | C65: LAC | D65: Chile | E65: Project Implemented | F65: Encouraging the Establishment and Consolidation of an Energy Service Market in Chile | G65: GEF - 4 | H65: 2010-12-07 | I65: 2.6 | J65: 12.9 | K65: 15.5 | L65: 5 | M65: Risk Mitigation | N65: 2,364,000 | O65: 236,400 | R65: 400
A66: 4257 | B66: WB | C66: CEX | D66: Global | E66: Project Implemented | F66: The GEF Earth Fund: IFC Earth Fund Platform | G66: GEF - 4 | H66: 2008-08-31 | I66: 32.7 | J66: 90 | K66: 122.7 | L66: 2.8 | M66: Mixed | N66: 30,000,000 | O66: 2,700,000 | R66: 0
A67: 4348 | B67: EBRD | C67: ECA | D67: Kazakhstan | E67: Under Implementation | F67: Reducing GHG Emissions through a Resource Efficiency Transformation Programme (ResET) for Industries in Kazakhstan | G67: GEF - 5 | H67: 2012-02-28 | I67: 7.8 | J67: 38.5 | K67: 46.3 | L67: 5 | M67: Debt | N67: 7,090,000 | O67: 673,550 | R67: (36,450)
A68: 4512 | B68: ADB | C68: Asia | D68: Regional | E68: Financially Closed | F68: Pilot Asia-Pacific Climate Technology Network and Finance Center | G68: GEF - 5 | H68: 2012-05-30 | I68: 12 | J68: 75 | K68: 87 | L68: 6.2 | M68: Equity | N68: 10,909,091 | O68: 1,090,909 | R68: =SUM(N68:Q68)-I68*10^6 -> 0
A69: 4626 | B69: WB | C69: AFR | D69: Djibouti | E69: Project Implemented | F69: Geothermal Power Generation Program | G69: GEF - 5 | H69: 2013-03-11 | I69: 6.6 | J69: 22.5 | K69: 29.1 | L69: 3.4 | M69: Debt | N69: 6,036,364 | O69: 603,636 | R69: 40,000
A70: 4753 | B70: UNIDO | C70: Asia | D70: Pakistan | E70: Under Implementation | F70: Sustainable Energy Initiative for Industries | G70: GEF - 5 | H70: 2014-04-01 | I70: 4 | J70: 32.7 | K70: 36.7 | L70: 8.2 | M70: Mixed | N70: 3,550,000 | O70: 355,000 | P70: 70,000 | Q70: 7,000 | R70: (18,000)
A71: 4784 | B71: UNIDO | C71: ECA | D71: Ukraine | E71: Under Implementation | F71: Introduction of Energy Management System Standard in Ukrainian Industry | G71: GEF - 5 | H71: 2013-10-20 | I71: 6.2 | J71: 39.8 | K71: 45.9 | L71: 6.4 | M71: Mixed | N71: 5,550,000 | O71: 555,000 | P71: 80,000 | Q71: 8,000 | R71: (7,000)
A72: 4788 | B72: UNIDO | C72: Asia | D72: India | E72: Project Implemented | F72: Promoting Business Models for Increasing Penetration and Scaling up of Solar Energy | G72: GEF - 5 | H72: 2013-12-22 | I72: 4.9 | J72: 21.8 | K72: 26.7 | L72: 4.5 | M72: Mixed | N72: 4,365,174 | O72: 436,517 | P72: 80,000 | Q72: 8,000 | R72: (10,309)
A73: 4801 | B73: UNDP | C73: Asia | D73: Viet Nam | E73: Project Implemented | F73: Promotion of Non-fired Brick (NFB) Production and Utilization | G73: GEF - 5 | H73: 2014-03-10 | I73: 3.2 | J73: 36.1 | K73: 39.3 | L73: 11.3 | M73: Debt | N73: 2,800,000 | O73: 280,000 | P73: 95,000 | Q73: 9,500 | R73: (15,500)
A74: 4890 | B74: UNIDO | C74: LAC | D74: Uruguay | E74: Project Implemented | F74: Towards a Green Economy in Uruguay: Stimulating Sustainable Production Practices and Low-emission Technologies in Prioritized Sectors | G74: GEF - 5 | H74: 2013-11-18 | I74: 3.8 | J74: 19.8 | K74: 23.6 | L74: 5.2 | M74: Debt | N74: 3,392,727 | O74: 339,273 | P74: 50,000 | Q74: 5,000 | R74: (13,000)
A75: 4918 | B75: WB | C75: Asia | D75: India | E75: Under Implementation | F75: Partial Risk Sharing Facility for Energy Efficiency | G75: GEF - 5 | H75: 2015-02-08 | I75: 19.8 | J75: 594.3 | K75: 614.1 | L75: 30 | M75: Risk Mitigation | N75: 18,000,000 | O75: 1,800,000 | R75: 0
A76: 4929 | B76: AfDB | C76: AFR | D76: Africa, Regional | E76: Under Implementation | F76: AfDB-PPP Public-Private Partnership Program | G76: GEF - 5 | H76: 2013-02-21 | I76: 21.6 | J76: 240 | K76: 261.6 | L76: 11.1 | M76: Debt | N76: 20,000,000 | O76: 1,600,000 | R76: 0
A77: 4957 | B77: WB | C77: ECA | D77: Turkey | E77: Project Implemented | F77: Small and Medium Enterprise Energy Efficiency Project | G77: GEF - 5 | H77: 2013-02-21 | I77: 4 | J77: 252.5 | K77: 256.5 | L77: 63.1 | M77: Debt | N77: 3,640,000 | O77: 360,000 | R77: 0
A78: 4959 | B78: IADB | C78: LAC | D78: Latin America and Caribbean, Regional | E78: Under Implementation | F78: IDB-PPP MIF Public-Private Partnership Program | G78: GEF - 5 | H78: 2013-03-27 | I78: 16.2 | J78: 266.3 | K78: 282.5 | L78: 16.4 | M78: Equity | N78: 15,000,000 | O78: 1,200,000 | R78: 0
A79: 5143 | B79: EBRD | C79: AFR | D79: Egypt, Jordan, Morocco, Tunisia, Regional | E79: Under Implementation | F79: PPP-EBRD South Eastern Mediterranean EE/ ESCO Markets Platform (PROGRAM) | G79: GEF - 5 | H79: 2014-09-03 | I79: 16.2 | J79: 150 | K79: 166.2 | L79: 9.3 | M79: Mixed | N79: 15,000,000 | O79: 1,200,000 | R79: 0
A80: 5388 | B80: IADB | C80: LAC | D80: Regional | E80: Under Implementation | F80: PPP-IDB Sustainable Caribbean Basin Energy Fund (PROGRAM) | G80: GEF - 5 | H80: 2016-09-01 | I80: 16.2 | J80: 200 | K80: 216.2 | L80: 12.3 | M80: Equity | N80: 15,000,000 | O80: 1,200,000 | R80: 0
A81: 5704 | B81: UNIDO | C81: AFR | D81: South Africa | E81: Under Implementation | F81: Promoting Organic Waste-to-Energy and other Low-carbon Technologies in Small and Medium-scale Enterprises (SMMEs): Accelarating Biogas Market Development | G81: GEF - 5 | H81: 2016-01-13 | I81: 4.7 | J81: 25.5 | K81: 30.2 | L81: 5.4 | M81: Mixed | N81: 4,222,110 | O81: 401,100 | P81: 90,000 | Q81: 8,550 | R81: 21,760
A82: 5754 | B82: IADB | C82: LAC | D82: Latin America and Caribbean,Regional | E82: Under Implementation | F82: IDB-GEF Climate-Smart Agriculture Fund for Latin America and the Caribbean (PROGRAM) | G82: GEF - 5 | H82: 2015-03-17 | I82: 5.4 | J82: 50.9 | K82: 56.3 | L82: 9.4 | M82: Mixed | N82: 5,000,000 | O82: 400,000 | R82: 0
A83: 6980 | B83: WB | C83: CEX | D83: Global | E83: Financially Closed | F83: The International Lighting Efficiency Facility (iLEF)(non-grant) | G83: GEF - 6 | H83: 2015-05-10 | I83: 1.3 | J83: 50.3 | K83: 51.6 | L83: 38.2 | M83: Debt | N83: 1,200,000 | O83: 114,000 | R83: 14,000
A84: 9043 | B84: AfDB | C84: AFR | D84: Africa, Regional | E84: Under Implementation | F84: Investing in Renewable Energy Project Preparation under the Fund for Energy Inclusion (FEI) | G84: GEF - 6 | H84: 2018-06-13 | I84: 11 | J84: 955 | K84: 966 | L84: 87.2 | M84: Debt | N84: 10,000,000 | O84: 950,000 | R84: (50,000)
A85: 9047 | B85: EBRD | C85: CEX | D85: Albania, Armenia, Azerbaijan, Belarus, Bosnia-Herzegovina, Egypt, Georgia, Jordan, Moldova, Montenegro, Morocco, North Macedonia, Serbia, Tunisia, Turkey, Ukraine, Regional | E85: Under Implementation | F85: Green Logistics Program (non-grant) | G85: GEF - 6 | H85: 2016-02-21 | I85: 16.4 | J85: 155.3 | K85: 171.6 | L85: 9.5 | M85: Debt | N85: 15,000,000 | O85: 1,350,000 | R85: (50,000)
A86: 9051 | B86: AfDB | C86: ECA | D86: Regional | E86: Under Implementation | F86: Moringa Agro-forestry Fund for Africa (non-grant) | G86: GEF - 6 | H86: 2015-08-19 | I86: 13.1 | J86: 50.8 | K86: 63.9 | L86: 3.9 | M86: Equity | N86: 12,000,000 | O86: 1,080,000 | R86: (20,000)
A87: 9058 | B87: IADB | C87: LAC | D87: Latin America and Caribbean, Regional | E87: Under Implementation | F87: Impact Investment in Support of the Implementation of the Nagoya Protocol on Access and Benefit Sharing (non-grant) | G87: GEF - 6 | H87: 2017-01-04 | I87: 11 | J87: 48.3 | K87: 59.3 | L87: 4.4 | M87: Equity | N87: 10,000,000 | O87: 950,000 | P87: 70,000 | Q87: 6,650 | R87: 26,650
A88: 9085 | B88: DBSA | C88: AFR | D88: South Africa | E88: CEO Endorsement Cleared | F88: Equity Fund for the Small Projects Independent Power Producer Procurement Programme (SP-IPPPP) | G88: GEF - 6 | H88: 2017-06-08 | I88: 16.6 | J88: 190.5 | K88: 207 | L88: 11.5 | M88: Equity | N88: 15,000,000 | O88: 1,350,000 | P88: 200,000 | Q88: 18,000 | R88: (32,000)
A89: 9277 | B89: IADB | C89: LAC | D89: Latin America and Caribbean, Regional | E89: Under Implementation | F89: Risk Mitigation Instrument for Land Restoration (Non-Grant) | G89: GEF - 6 | H89: 2017-09-26 | I89: 16.4 | J89: 120 | K89: 136.4 | L89: 7.3 | M89: Risk Mitigation | N89: 15,000,000 | O89: 1,350,000 | R89: (50,000)
A90: 9370 | B90: CI | C90: Asia | D90: Indonesia, Philippines, Regional | E90: Under Implementation | F90: (NGI) The Meloy Fund : A Fund for Sustainable Small-scale Fisheries in Southeast Asia | G90: GEF - 6 | H90: 2017-09-26 | I90: 6.8 | J90: 35.2 | K90: 42 | L90: 5.2 | M90: Equity | N90: 6,000,000 | O90: 540,000 | P90: 200,000 | Q90: 18,000 | R90: (42,000)
A91: 9563 | B91: WB | C91: SIDS | D91: Seychelles | E91: Under Implementation | F91: Third South West Indian Ocean Fisheries Governance and Shared Growth Project (SWIOFish3) | G91: GEF - 6 | H91: 2017-06-15 | I91: 11.4 | J91: 54 | K91: 65.4 | L91: 4.7 | M91: Risk Mitigation | N91: 10,292,110 | O91: 977,750 | P91: 136,986 | Q91: 13,014 | R91: 19,860
A92: 9719 | B92: UNEP | C92: CEX | D92: Global | E92: Under Implementation | F92: Piloting Innovative Investments for Sustainable Landscapes | G92: GEF - 6 | H92: 2018-02-05 | I92: 2.2 | J92: 52 | K92: 54.2 | L92: 23.2 | M92: Equity | N92: 2,000,000 | O92: 190,000 | P92: 50,000 | Q92: 4,750 | R92: 44,750
A93: 9914 | B93: IUCN | C93: CEX | D93: Global | E93: Project Implemented | F93: CPIC Conservation Finance Initiative - Scaling up and Demonstrating the Value of Blended Finance in Conservation | G93: GEF - 6 | H93: 2019-05-06 | I93: 9.2 | J93: 102.8 | K93: 112 | L93: 11.2 | M93: Equity | N93: 8,250,000 | O93: 742,500 | P93: 200,000 | Q93: 18,000 | R93: 10,500
A94: 10322 | B94: CI | C94: CEX | D94: Global | E94: CEO Endorsement Cleared | F94: The Food Securities Fund: A fund to finance sustainable supply chains at scale in Emerging Markets | G94: GEF - 7 | H94: 2021-09-07 | I94: 15 | J94: 773.3 | K94: 788.3 | L94: 51.6 | M94: Equity | N94: 13,461,468 | O94: 1,211,532 | P94: 300,000 | Q94: 27,000 | R94: 0
A95: 10328 | B95: EBRD | C95: ECA | D95: Albania, Bosnia-Herzegovina, Montenegro, North Macedonia, Serbia, Turkey, Regional | E95: CEO Endorsement Cleared | F95: Circular Economy Regional Initiative (CERI) | G95: GEF - 7 | H95: 2021-09-16 | I95: 15 | J95: 141.9 | K95: 156.9 | L95: 9.5 | M95: Debt | N95: 13,761,468 | O95: 1,238,532 | R95: 0
A96: 10330 | B96: WB | C96: AFR | D96: South Africa | E96: CEO Endorsement Cleared | F96: Wildlife Conservation Bond | G96: GEF - 7 | H96: 2021-06-03 | I96: 15 | J96: 178.5 | K96: 193.5 | L96: 11.9 | M96: Debt | N96: 13,761,468 | O96: 1,238,532 | R96: 0
A97: 10336 | B97: IADB | C97: LAC | D97: Argentina, Brazil, Colombia, Costa Rica, Ecuador, Guatemala, Honduras, Paraguay, Peru, Uruguay, Regional | E97: CEO Endorsement Cleared | F97: Agtech for inclusion and sustainability: SP Ventures'Regional Fund (Agventures II) | G97: GEF - 7 | H97: 2022-01-13 | I97: 5.5 | J97: 55 | K97: 60.5 | L97: 10.1 | M97: Equity | N97: 5,000,000 | O97: 450,000 | R97: (50,000)
A98: 10497 | B98: CI | C98: CEX | D98: Global | E98: CEO Endorsement Cleared | F98: AGRI3 A Forest Conservation and Sustainable Agriculture Fund for Developing Countries | G98: GEF - 7 | H98: 2022-10-05 | I98: 15 | J98: 151.5 | K98: 166.5 | L98: 10.1 | M98: Equity | N98: 13,461,468 | O98: 1,211,532 | P98: 300,000 | Q98: 27,000 | R98: 0
A99: 10500* | B99: CI | C99: CEX | D99: Global | E99: Council Approved | F99: Livelihoods Carbon Fund 3 (LCF3) | G99: GEF - 7 | H99: 2023-06-02 | I99: 15 | J99: 111 | K99: 126 | L99: 7.4 | M99: Equity | N99: 13,461,468 | O99: 1,211,532 | P99: 300,000 | Q99: 27,000 | R99: 0
A100: 10667 | B100: AfDB | C100: AFR | D100: Regional | E100: CEO Endorsement Cleared | F100: COVID-19 Off-Grid Recovery Platform | G100: GEF - 7 | H100: 2022-06-07 | I100: 14.4 | J100: 57 | K100: 71.4 | L100: 4 | M100: Debt | N100: 13,000,000 | O100: 1,170,000 | P100: 200,000 | Q100: 18,000 | R100: (12,000)
A101: 10766* | B101: WB | C101: CEX | D101: Global | E101: Council Approved | F101: IFC-GEF Hotel Green Revitalization Program (HGRP) | G101: GEF - 7 | H101: TBD | I101: 10 | J101: 802.5 | K101: 812.5 | L101: 80.3 | M101: Risk Mitigation | N101: 9,132,420 | O101: 867,580 | R101: 0
A102: 10852* | B102: CAF | C102: LAC | D102: Ecuador, Peru | E102: Council Approved | F102: Green Finance & Sustainable Agriculture in the Dry Forest Ecoregion of Ecuador and Peru | G102: GEF-7 | H102: TBD | I102: 6.6 | J102: 68.2 | K102: 74.8 | L102: 10.3 | M102: Risk Mitigation | N102: 6,000,000 | O102: 540,000 | P102: 100,000 | Q102: 9,000 | R102: 49,000
A103: 10937* | B103: CI | C103: LAC | D103: Regional | E103: Council Approved | F103: The Selva Fund | G103: GEF-7 | H103: TBD | I103: 11.1 | J103: 77 | K103: 88.1 | L103: 6.9 | M103: Equity | N103: 10,000,000 | O103: 900,000 | P103: 200,000 | Q103: 18,000 | R103: 18,000
A104: 11062 | B104: ADB | C104: Asia | D104: Regional | E104: Council Approved | F104: Natural Capital Fund (NCF): Investing in Nature-Positive Agri-Food Enterprises in Asia and the Pacific | G104: GEF-8 | H104: TBD | I104: 15 | J104: 646.4 | K104: 661.4 | L104: 43.1 | M104: Equity | N104: 13,761,469 | O104: 1,238,531 | P104: 0 | Q104: 0 | R104: 0
A105: 11065 | B105: WB | C105: LAC | D105: Chile | E105: Council Approved | F105: Chile Green Hydrogen Facility Project | G105: GEF-8 | H105: TBD | I105: 15 | J105: 450 | K105: 600 | L105: 15 | M105: Risk Mitigation | N105: 13,761,468 | O105: 1,238,532 | R105: 0
A106: 11066 | B106: IADB | C106: LAC | D106: Regional | E106: Council Approved | F106: Yield Lab Opportunity Fund I: Accelerating technology and local innovation for sustainable and decarbonized food systems in Latin America and the Caribbean. | G106: GEF-8 | H106: TBD | I106: 6.6 | J106: 44 | K106: 50.6 | L106: 6.7 | M106: Equity | N106: 6,000,000 | O106: 570,000 | R106: (30,000)
A107: 11068 | B107: WB | C107: Asia | D107: India | E107: Council Approved | F107: Guarantee Mechanism for Renewable Biogas in India | G107: GEF-8 | H107: TBD | I107: 15 | J107: 705 | K107: 720 | L107: 47 | M107: Risk Mitigation | N107: 13,761,468 | O107: 1,238,532 | R107: 0
A108: Total | I108: =SUM(I3:I107) -> 977.0 | J108: =SUM(J3:J107) -> 10,558.10 | K108: =SUM(K3:K107) -> 11669.7 | L108: =J108/I108 -> 10.8

Sheet Annex 1 11 12 2024
A1: GEF ID | B1: Agency | C1: Region | D1: Country | E1: Project Status | F1: Title | G1: GEF Phase | H1: CEO Approval | I1: GEF Amount ($M)** | J1: Co-Financing ($M) | K1: Total Project Cost ($M) | L1: Co-financing Ratio | M1: Type of Non-Grant Instrument (summarized)
H2: /Endorsement date
A3: 13 | B3: UNDP | C3: Asia | D3: Thailand | E3: Financially Closed | F3: Removal of Barriers to Biomass Power Generation and Co-generation | G3: GEF - 2 | H3: 2001-01-22 | I3: 7.2 | J3: 66.4 | K3: 73.6 | L3: 9.2 | M3: Risk Mitigation
A4: 91 | B4: WB | C4: CEX | D4: Global | E4: Project Implemented | F4: Small and Medium Scale Enterprise Program (IFC) | G4: GEF - 1 | H4: 1994-07-01 | I4: 4.3 | J4: 15.2 | K4: 19.5 | L4: 3.5 | M4: Mixed
A5: 111 | B5: WB | C5: ECA | D5: Hungary | E5: Project Implemented | F5: Energy Efficiency Co-Financing Program | G5: GEF - 1 | H5: 1997-05-10 | I5: 5 | J5: 20 | K5: 25 | L5: 4 | M5: Risk Mitigation
A6: 112 | B6: WB | C6: CEX | D6: India, Kenya, Morocco, Global | E6: Project Implemented | F6: Photovoltaic Market Transformation Initiative (IFC) | G6: GEF - 1 | H6: 1998-06-16 | I6: 30.4 | J6: 90 | K6: 120.4 | L6: 3 | M6: Mixed
A7: 135 | B7: WB | C7: CEX | D7: Global | E7: Financially Closed | F7: Small and Medium Scale Enterprise Program (IFC, first replenishment) | G7: GEF - 1 | H7: 1997-02-09 | I7: 16.5 | J7: 36 | K7: 52.5 | L7: 2.2 | M7: Mixed
A8: 267 | B8: UNDP | C8: CEX | D8: Egypt, Palestinian Authority, Regional | E8: Financially Closed | F8: Energy Efficiency Improvements and Greenhouse Gas Reductions | G8: GEF - 1 | H8: 1998-06-15 | I8: 6.4 | J8: 1.8 | K8: 8.1 | L8: 0.3 | M8: Risk Mitigation
A9: 314 | B9: UNDP | C9: LAC | D9: Bolivia | E9: Financially Closed | F9: A Program for Rural Electrification with Renewable Energy Using the Popular Participation Law | G9: GEF - 1 | H9: 1999-05-27 | I9: 4.2 | J9: 4.1 | K9: 8.3 | L9: 1 | M9: Debt
A10: 377 | B10: UNDP | C10: AFR | D10: Sudan | E10: Financially Closed | F10: Community Based Rangeland Rehabilitation for Carbon Sequestration | G10: Pilot Phase | H10: 1994-08-01 | I10: 1.5 | J10: 0.1 | K10: 1.6 | L10: 0.1 | M10: Debt
A11: 386 | B11: UNDP | C11: Asia | D11: India | E11: Financially Closed | F11: Optimizing Development of Small Hydel Resources in Hilly Areas | G11: Pilot Phase | H11: 1991-12-01 | I11: 7.5 | J11: 7.1 | K11: 14.6 | L11: 1 | M11: Debt
A12: 391 | B12: UNDP | C12: Asia | D12: Pakistan | E12: Financially Closed | F12: Fuel Efficiency in the Road Transport Sector | G12: Pilot Phase | H12: 1992-05-01 | I12: 7 | J12: 0 | K12: 7 | L12: 0 | M12: Debt
A13: 448 | B13: UNDP | C13: Asia | D13: Malaysia | E13: Financially Closed | F13: Industrial Energy Efficiency Improvement Project | G13: GEF - 1 | H13: 1999-06-07 | I13: 7.3 | J13: 12.6 | K13: 19.9 | L13: 1.7 | M13: Debt
A14: 540 | B14: WB | C14: Asia | D14: Thailand | E14: Financially Closed | F14: Building Chiller Replacement Program | G14: GEF - 2 | H14: 2001-04-22 | I14: 2.5 | J14: 88 | K14: 90.5 | L14: 35.2 | M14: Debt
A15: 622 | B15: UNDP | C15: Asia | D15: China | E15: Project Implemented | F15: Energy Conservation and GHG Emission Reduction in Chinese Township and Village Enterprises (TVE), Phase II | G15: GEF - 2 | H15: 2000-10-10 | I15: 8 | J15: 10.6 | K15: 18.5 | L15: 1.3 | M15: Debt
A16: 641 | B16: UNDP | C16: AFR | D16: Malawi | E16: Financially Closed | F16: Barrier Removal to Renewable Energy Programme | G16: GEF - 2 | H16: 2000-10-14 | I16: 3.4 | J16: 7.3 | K16: 10.7 | L16: 2.1 | M16: Risk Mitigation
A17: 646 | B17: UNDP | C17: AFR | D17: Morocco | E17: Financially Closed | F17: Market Development for Solar Water Heaters | G17: GEF - 2 | H17: 2000-04-23 | I17: 3 | J17: 2.4 | K17: 5.4 | L17: 0.8 | M17: Risk Mitigation
A18: 658 | B18: UNDP | C18: ECA | D18: Slovenia | E18: Financially Closed | F18: Removing Barriers to the Increased Use of Biomass as an Energy Source | G18: GEF - 2 | H18: 2001-02-04 | I18: 4.4 | J18: 7.9 | K18: 12.3 | L18: 1.8 | M18: Debt
A19: 660 | B19: UNDP | C19: AFR | D19: Sudan | E19: Financially Closed | F19: Barrier Removal to Secure PV Market Penetration in Semi-Urban Sudan | G19: GEF - 2 | H19: 1999-03-04 | I19: 0.8 | J19: 1 | K19: 1.7 | L19: 1.3 | M19: Risk Mitigation
A20: 786 | B20: WB | C20: ECA | D20: Poland | E20: Financially Closed | F20: Krakow Energy Efficiency Project | G20: GEF - 2 | H20: 2004-09-20 | I20: 12.1 | J20: 88 | K20: 100.1 | L20: 7.3 | M20: Risk Mitigation
A21: 843 | B21: UNDP | C21: LAC | D21: Chile | E21: Financially Closed | F21: Removal of Barriers to Rural Electrification with Renewable Energy | G21: GEF - 2 | H21: 2001-06-27 | I21: 6.4 | J21: 26.3 | K21: 32.8 | L21: 4.1 | M21: Risk Mitigation
A22: 882 | B22: UNDP | C22: ECA | D22: Croatia | E22: Financially Closed | F22: Removing Barriers to Improving Energy Efficiency of the Residential and Service Sectors | G22: GEF - 2 | H22: 2004-08-08 | I22: 5 | J22: 8.7 | K22: 13.6 | L22: 1.7 | M22: Risk Mitigation
A23: 883 | B23: WB | C23: ECA | D23: Romania | E23: Financially Closed | F23: Energy Efficiency Project | G23: GEF - 2 | H23: 2002-08-19 | I23: 11.4 | J23: 40 | K23: 51.4 | L23: 3.5 | M23: Debt
A24: 935 | B24: UNDP | C24: AFR | D24: Namibia | E24: Financially Closed | F24: Barrier Removal to Namibian Renewable Energy Programme, Phase I | G24: GEF - 2 | H24: 2003-01-12 | I24: 2.9 | J24: 4.7 | K24: 7.7 | L24: 1.6 | M24: Risk Mitigation
A25: 944 | B25: WB | C25: ECA | D25: Croatia | E25: Financially Closed | F25: Energy Efficiency Project | G25: GEF - 2 | H25: 2003-08-24 | I25: 7.8 | J25: 23.4 | K25: 31.2 | L25: 3 | M25: Risk Mitigation
A26: 1061 | B26: WB | C26: LAC | D26: Peru | E26: Financially Closed | F26: Inka Terra: An Innovative Partnership for Self-Financing Biodiversity Conservation & Community Development | G26: GEF - 3 | H26: 2003-12-18 | I26: 0.9 | J26: 11.4 | K26: 12.3 | L26: 12.7 | M26: Debt
A27: 1137 | B27: UNDP | C27: ECA | D27: Georgia | E27: Financially Closed | F27: Promoting the Use of Renewable Energy Resources for Local Energy Supply | G27: GEF - 3 | H27: 2004-02-10 | I27: 5.1 | J27: 8.7 | K27: 13.8 | L27: 1.7 | M27: Debt
A28: 1198 | B28: UNDP | C28: ECA | D28: Belarus | E28: Financially Closed | F28: Biomass Energy for Heating and Hot Water Supply | G28: GEF - 3 | H28: 2003-06-25 | I28: 3.8 | J28: 5.6 | K28: 9.3 | L28: 1.5 | M28: Debt
A29: 1199 | B29: UNDP | C29: Asia | D29: India | E29: Financially Closed | F29: Removal of Barriers to Biomass Power Generation, Part I | G29: GEF - 3 | H29: 2005-01-12 | I29: 6 | J29: 33.5 | K29: 39.5 | L29: 5.6 | M29: Risk Mitigation
A30: 1237 | B30: WB | C30: Asia | D30: China | E30: Financially Closed | F30: Energy Conservation Project, Phase II | G30: GEF - 2 | H30: 2002-09-29 | I30: 29.1 | J30: 255.2 | K30: 284.3 | L30: 8.8 | M30: Risk Mitigation
A31: 1245 | B31: UNDP | C31: AFR | D31: Lesotho | E31: Financially Closed | F31: Renewable Energy-based Rural Electrification | G31: GEF - 3 | H31: 2006-09-21 | I31: 3.2 | J31: 4.3 | K31: 7.5 | L31: 1.3 | M31: Risk Mitigation
A32: 1264 | B32: UNDP | C32: Asia | D32: Philippines | E32: Financially Closed | F32: Capacity Building to Remove Barriers to Renewable Energy Development | G32: GEF - 2 | H32: 2002-09-23 | I32: 6.8 | J32: 18.3 | K32: 25.2 | L32: 2.7 | M32: Risk Mitigation
A33: 1265 | B33: UNDP | C33: ECA | D33: Poland | E33: Financially Closed | F33: Polish Energy Efficiency Motors Programme | G33: GEF - 2 | H33: 2003-11-04 | I33: 4.9 | J33: 17.7 | K33: 22.6 | L33: 3.6 | M33: Debt
A34: 1291 | B34: WB | C34: ECA | D34: Croatia | E34: Financially Closed | F34: Renewable Energy Resources Project | G34: GEF - 2 | H34: 2005-05-22 | I34: 6.7 | J34: 21.4 | K34: 28.2 | L34: 3.2 | M34: Mixed
A35: 1316 | B35: WB | C35: ECA | D35: Hungary | E35: Financially Closed | F35: Energy Efficiency Co-Financing Program 2 (HEECP2) | G35: GEF - 2 | H35: 2001-10-02 | I35: 0.9 | J35: 93.2 | K35: 94.1 | L35: 99.1 | M35: Risk Mitigation
A36: 1335 | B36: UNDP | C36: AFR | D36: Egypt | E36: Project Implemented | F36: Bioenergy for Sustainable Rural Development | G36: GEF - 3 | H36: 2008-07-13 | I36: 3.6 | J36: 13.3 | K36: 16.9 | L36: 3.6 | M36: Debt
A37: 1358 | B37: UNEP | C37: AFR | D37: Zambia | E37: Financially Closed | F37: Renewable Energy-based Electricity Generation for Isolated Mini-grids | G37: GEF - 3 | H37: 2005-11-15 | I37: 3.7 | J37: 4.6 | K37: 8.2 | L37: 1.2 | M37: Debt
A38: 1361 | B38: UNEP | C38: SIDS | D38: Cuba | E38: Financially Closed | F38: Generation and Delivery of Renewable Energy Based Modern Energy Services in Cuba; the case of Isla de la Juventud | G38: GEF - 3 | H38: 2005-03-20 | I38: 6 | J38: 10.5 | K38: 16.5 | L38: 1.7 | M38: Debt
A39: 1413 | B39: UNDP | C39: LAC | D39: Honduras | E39: Financially Closed | F39: Energy Efficiency Measures in the Honduran Commercial and Industry Sectors | G39: GEF - 3 | H39: 2004-01-15 | I39: 1.1 | J39: 1.6 | K39: 2.8 | L39: 1.4 | M39: Risk Mitigation
A40: 1532 | B40: WB | C40: Asia | D40: Philippines | E40: Financially Closed | F40: Electric Cooperative System Loss Reduction Project | G40: GEF - 3 | H40: 2004-04-11 | I40: 13.6 | J40: 50.5 | K40: 64.1 | L40: 3.7 | M40: Risk Mitigation
A41: 1541 | B41: WB | C41: ECA | D41: Czech Republic, Estonia, Latvia, Lithuania, Slovak Republic, Regional | E41: Project Implemented | F41: Commercializing Energy Efficiency Finance (CEEF) - Tranche I | G41: GEF - 2 | H41: 2002-10-05 | I41: 12.5 | J41: 20.9 | K41: 33.3 | L41: 1.7 | M41: Risk Mitigation
A42: 1571 | B42: WB | C42: LAC | D42: Belize, Bolivia, Costa Rica, Ecuador, El Salvador, Mexico, Panama, Paraguay, Peru, Regional | E42: Financially Closed | F42: EcoEnterprises Fund | G42: GEF - 2 | H42: 2002-04-18 | I42: 1.1 | J42: 9 | K42: 10.1 | L42: 7.9 | M42: Debt
A43: 1609 | B43: UNEP | C43: CEX | D43: Belize, Cambodia, Cameroon, Costa Rica, Ghana, Guatemala, Indonesia, Nicaragua, Panama, Philippines, Tanzania, Thailand, Viet Nam, Zambia, Global | E43: Project Implemented | F43: Renewable Energy Enterprise Development - Seed Capital Access Facility | G43: GEF - 3 | H43: 2007-05-30 | I43: 9.2 | J43: 40.5 | K43: 49.7 | L43: 4.4 | M43: Equity
A44: 1646 | B44: UNDP | C44: ECA | D44: Russian Federation | E44: Financially Closed | F44: Cost Effective Energy Efficiency Measures in the Russian Educational Sector | G44: GEF - 2 | H44: 2002-06-09 | I44: 1.1 | J44: 1.7 | K44: 2.9 | L44: 1.5 | M44: Debt
A45: 2000 | B45: WB | C45: CEX | D45: Global | E45: Project Implemented | F45: Environmental Business Finance Program (EBFP) | G45: GEF - 3 | H45: 2004-03-23 | I45: 20 | J45: 80 | K45: 100 | L45: 4 | M45: Risk Mitigation
A46: 2105 | B46: UNDP | C46: ECA | D46: Croatia | E46: Financially Closed | F46: Conservation and Sustainable Use of Biodiversity in the Dalmatian Coast through Greening Coastal Development | G46: GEF - 3 | H46: 2006-09-27 | I46: 8 | J46: 24.3 | K46: 32.3 | L46: 3.1 | M46: Risk Mitigation
A47: 2108 | B47: WB | C47: Asia | D47: Philippines | E47: Financially Closed | F47: Electric Cooperative System Loss Reduction Project | G47: GEF-3 | H47: 2009-04-12 | I47: 5.8 | J47: 20 | K47: 25.8 | L47: 3.4 | M47: Risk Mitigation
A48: 2111 | B48: WB | C48: ECA | D48: Russian Federation | E48: Project Implemented | F48: Russian Sustainable Energy Finance Program | G48: GEF - 3 | H48: 2005-03-16 | I48: 7.6 | J48: 23.3 | K48: 30.9 | L48: 3 | M48: Risk Mitigation
A49: 2117 | B49: WB | C49: ECA | D49: Bulgaria | E49: Financially Closed | F49: Energy Efficiency Project | G49: GEF - 3 | H49: 2005-02-13 | I49: 11.1 | J49: 39.5 | K49: 50.7 | L49: 3.5 | M49: Risk Mitigation
A50: 2119 | B50: UNEP | C50: AFR | D50: Eritrea, Ethiopia, Kenya, Rwanda, Tanzania, Uganda, Regional | E50: Financially Closed | F50: African Rift Geothermal Development Facility (ARGeo) | G50: GEF - 3 | H50: 2012-07-24 | I50: 20.7 | J50: 55.6 | K50: 76.3 | L50: 2.7 | M50: Debt
A51: 2174 | B51: WB | C51: ECA | D51: Czech Republic, Estonia, Latvia, Lithuania, Slovak Republic, Regional | E51: Project Implemented | F51: Commercializing Energy Efficiency Finance (CEEF) - Tranche II | G51: GEF - 2 | H51: 2003-08-10 | I51: 9.9 | J51: 57 | K51: 66.9 | L51: 5.8 | M51: Risk Mitigation
A52: 2256 | B52: UNDP | C52: AFR | D52: Namibia | E52: Financially Closed | F52: Barrier Removal to Namibian Renewable Energy Programme (NAMREP), Phase II | G52: GEF - 3 | H52: 2007-05-30 | I52: 2.8 | J52: 7.6 | K52: 10.5 | L52: 2.7 | M52: Risk Mitigation
A53: 2531 | B53: WB | C53: ECA | D53: North Macedonia | E53: Financially Closed | F53: Sustainable Energy Program | G53: GEF - 3 | H53: 2006-11-26 | I53: 6.4 | J53: 28.8 | K53: 35.2 | L53: 4.5 | M53: Debt
A54: 2619 | B54: UNEP | C54: ECA | D54: Belarus, Bulgaria, Kazakhstan, North Macedonia, Romania, Russian Federation, Serbia, Ukraine, Regional | E54: Financially Closed | F54: Financing Energy Efficiency and Renewable Energy Investments for Climate Change Mitigation | G54: GEF - 3 | H54: 2006-10-24 | I54: 3.3 | J54: 9.3 | K54: 12.5 | L54: 2.8 | M54: Mixed
A55: 2624 | B55: WB | C55: Asia | D55: China | E55: Project Implemented | F55: China Utility-Based Energy Efficiency Finance Program (CHUEE) | G55: GEF - 3 | H55: 2006-03-09 | I55: 18 | J55: 130.4 | K55: 148.4 | L55: 7.3 | M55: Risk Mitigation
A56: 2670 | B56: UNDP | C56: LAC | D56: Costa Rica, El Salvador, Guatemala, Honduras, Nicaragua, Regional | E56: Financially Closed | F56: Central American Markets for Biodiversity (CAMBio): Mainstreaming Biodiversity Conservation and Sustainable use within Micro, Small and Medium-sized Enterprise Development and Financing | G56: GEF - 3 | H56: 2006-03-19 | I56: 11 | J56: 17.8 | K56: 28.8 | L56: 1.6 | M56: Risk Mitigation
A57: 2939 | B57: UNDP | C57: CEX | D57: Global | E57: Financially Closed | F57: Solar Water Heating Market Transformation and Strengthening Initiative, Phase 1 | G57: GEF - 3 | H57: 2008-07-28 | I57: 13.4 | J57: 19.2 | K57: 32.5 | L57: 1.4 | M57: Risk Mitigation
A58: 2941 | B58: UNDP | C58: LAC | D58: Brazil | E58: Project Implemented | F58: Market Transformation for Energy Efficiency in Buildings | G58: GEF - 4 | H58: 2009-07-28 | I58: 15.1 | J58: 64.8 | K58: 79.9 | L58: 4.3 | M58: Mixed
A59: 2944 | B59: WB | C59: SIDS | D59: Fiji, Marshall Islands, Papua New Guinea, Solomon Islands, Vanuatu, Regional | E59: Under Implementation | F59: Sustainable Energy Financing | G59: GEF - 3 | H59: 2007-05-17 | I59: 10.3 | J59: 21.6 | K59: 31.9 | L59: 2.1 | M59: Risk Mitigation
A60: 3005 | B60: IADB | C60: LAC | D60: Brazil, Mexico, Nicaragua, Panama, Regional | E60: Project Implemented | F60: CleanTech Fund | G60: GEF - 3 | H60: 2006-02-06 | I60: 1.1 | J60: 61.2 | K60: 62.3 | L60: 56.4 | M60: Equity
A61: 3558 | B61: WB | C61: AFR | D61: Cabo Verde, Liberia, Senegal, Sierra Leone, Regional | E61: Financially Closed | F61: SP-SFIF: West Africa Regional Fisheries Program (WARFP) | G61: GEF - 3 | H61: 2009-08-31 | I61: 11.5 | J61: 121 | K61: 132.5 | L61: 10.6 | M61: Debt
A62: 3597 | B62: EBRD | C62: ECA | D62: Russian Federation | E62: Under Implementation | F62: RUS Improving Urban Housing Efficiency in the Russian Federation | G62: GEF - 4 | H62: 2010-11-18 | I62: 10.8 | J62: 86.7 | K62: 97.5 | L62: 8 | M62: Debt
A63: 3626 | B63: UNEP | C63: SIDS | D63: Marshall Islands, Micronesia, Palau, Regional | E63: Financially Closed | F63: PAS: The Micronesia Challenge : Sustainable Finance Systems for Island Protected Area Management - under the GEF Pacific Alliance for Sustainability | G63: GEF - 4 | H63: 2010-05-27 | I63: 6 | J63: 10.9 | K63: 16.9 | L63: 1.8 | M63: Debt
A64: 3766 | B64: IADB | C64: LAC | D64: Antigua and Barbuda, Barbados, Costa Rica, Guatemala, Guyana, Honduras, Panama,St. Lucia, Suriname, Regional | E64: Financially Closed | F64: Testing a Prototype Caribbean Regional Fund for Wastewater Management (CReW) | G64: GEF - 4 | H64: 2010-12-01 | I64: 22.4 | J64: 251.5 | K64: 273.9 | L64: 11.2 | M64: Debt
A65: 4176 | B65: IADB | C65: LAC | D65: Chile | E65: Project Implemented | F65: Encouraging the Establishment and Consolidation of an Energy Service Market in Chile | G65: GEF - 4 | H65: 2010-12-07 | I65: 2.6 | J65: 12.9 | K65: 15.5 | L65: 5 | M65: Risk Mitigation
A66: 4257 | B66: WB | C66: CEX | D66: Global | E66: Project Implemented | F66: The GEF Earth Fund: IFC Earth Fund Platform | G66: GEF - 4 | H66: 2008-08-31 | I66: 32.7 | J66: 90 | K66: 122.7 | L66: 2.8 | M66: Mixed
A67: 4348 | B67: EBRD | C67: ECA | D67: Kazakhstan | E67: Under Implementation | F67: Reducing GHG Emissions through a Resource Efficiency Transformation Programme (ResET) for Industries in Kazakhstan | G67: GEF - 5 | H67: 2012-02-28 | I67: 7.8 | J67: 38.5 | K67: 46.3 | L67: 5 | M67: Debt
A68: 4512 | B68: ADB | C68: Asia | D68: Regional | E68: Financially Closed | F68: Pilot Asia-Pacific Climate Technology Network and Finance Center | G68: GEF - 5 | H68: 2012-05-30 | I68: 12 | J68: 75 | K68: 87 | L68: 6.2 | M68: Equity
A69: 4626 | B69: WB | C69: AFR | D69: Djibouti | E69: Project Implemented | F69: Geothermal Power Generation Program | G69: GEF - 5 | H69: 2013-03-11 | I69: 6.6 | J69: 22.5 | K69: 29.1 | L69: 3.4 | M69: Debt
A70: 4753 | B70: UNIDO | C70: Asia | D70: Pakistan | E70: Under Implementation | F70: Sustainable Energy Initiative for Industries | G70: GEF - 5 | H70: 2014-04-01 | I70: 4 | J70: 32.7 | K70: 36.7 | L70: 8.2 | M70: Mixed
A71: 4784 | B71: UNIDO | C71: ECA | D71: Ukraine | E71: Under Implementation | F71: Introduction of Energy Management System Standard in Ukrainian Industry | G71: GEF - 5 | H71: 2013-10-20 | I71: 6.2 | J71: 39.8 | K71: 45.9 | L71: 6.4 | M71: Mixed
A72: 4788 | B72: UNIDO | C72: Asia | D72: India | E72: Project Implemented | F72: Promoting Business Models for Increasing Penetration and Scaling up of Solar Energy | G72: GEF - 5 | H72: 2013-12-22 | I72: 4.9 | J72: 21.8 | K72: 26.7 | L72: 4.5 | M72: Mixed
A73: 4801 | B73: UNDP | C73: Asia | D73: Viet Nam | E73: Project Implemented | F73: Promotion of Non-fired Brick (NFB) Production and Utilization | G73: GEF - 5 | H73: 2014-03-10 | I73: 3.2 | J73: 36.1 | K73: 39.3 | L73: 11.3 | M73: Debt
A74: 4890 | B74: UNIDO | C74: LAC | D74: Uruguay | E74: Project Implemented | F74: Towards a Green Economy in Uruguay: Stimulating Sustainable Production Practices and Low-emission Technologies in Prioritized Sectors | G74: GEF - 5 | H74: 2013-11-18 | I74: 3.8 | J74: 19.8 | K74: 23.6 | L74: 5.2 | M74: Debt
A75: 4918 | B75: WB | C75: Asia | D75: India | E75: Under Implementation | F75: Partial Risk Sharing Facility for Energy Efficiency | G75: GEF - 5 | H75: 2015-02-08 | I75: 19.8 | J75: 594.3 | K75: 614.1 | L75: 30 | M75: Risk Mitigation
A76: 4929 | B76: AfDB | C76: AFR | D76: Africa, Regional | E76: Under Implementation | F76: AfDB-PPP Public-Private Partnership Program | G76: GEF - 5 | H76: 2013-02-21 | I76: 21.6 | J76: 240 | K76: 261.6 | L76: 11.1 | M76: Debt
A77: 4957 | B77: WB | C77: ECA | D77: Turkey | E77: Project Implemented | F77: Small and Medium Enterprise Energy Efficiency Project | G77: GEF - 5 | H77: 2013-02-21 | I77: 4 | J77: 252.5 | K77: 256.5 | L77: 63.1 | M77: Debt
A78: 4959 | B78: IADB | C78: LAC | D78: Latin America and Caribbean, Regional | E78: Under Implementation | F78: IDB-PPP MIF Public-Private Partnership Program | G78: GEF - 5 | H78: 2013-03-27 | I78: 16.2 | J78: 266.3 | K78: 282.5 | L78: 16.4 | M78: Equity
A79: 5143 | B79: EBRD | C79: AFR | D79: Egypt, Jordan, Morocco, Tunisia, Regional | E79: Under Implementation | F79: PPP-EBRD South Eastern Mediterranean EE/ ESCO Markets Platform (PROGRAM) | G79: GEF - 5 | H79: 2014-09-03 | I79: 16.2 | J79: 150 | K79: 166.2 | L79: 9.3 | M79: Mixed
A80: 5388 | B80: IADB | C80: LAC | D80: Regional | E80: Under Implementation | F80: PPP-IDB Sustainable Caribbean Basin Energy Fund (PROGRAM) | G80: GEF - 5 | H80: 2016-09-01 | I80: 16.2 | J80: 200 | K80: 216.2 | L80: 12.3 | M80: Equity
A81: 5704 | B81: UNIDO | C81: AFR | D81: South Africa | E81: Under Implementation | F81: Promoting Organic Waste-to-Energy and other Low-carbon Technologies in Small and Medium-scale Enterprises (SMMEs): Accelarating Biogas Market Development | G81: GEF - 5 | H81: 2016-01-13 | I81: 4.7 | J81: 25.5 | K81: 30.2 | L81: 5.4 | M81: Mixed
A82: 5754 | B82: IADB | C82: LAC | D82: Latin America and Caribbean,Regional | E82: Under Implementation | F82: IDB-GEF Climate-Smart Agriculture Fund for Latin America and the Caribbean (PROGRAM) | G82: GEF - 5 | H82: 2015-03-17 | I82: 5.4 | J82: 50.9 | K82: 56.3 | L82: 9.4 | M82: Mixed
A83: 6980 | B83: WB | C83: CEX | D83: Global | E83: Financially Closed | F83: The International Lighting Efficiency Facility (iLEF)(non-grant) | G83: GEF - 6 | H83: 2015-05-10 | I83: 1.3 | J83: 50.3 | K83: 51.6 | L83: 38.2 | M83: Debt
A84: 9043 | B84: AfDB | C84: AFR | D84: Africa, Regional | E84: Under Implementation | F84: Investing in Renewable Energy Project Preparation under the Fund for Energy Inclusion (FEI) | G84: GEF - 6 | H84: 2018-06-13 | I84: 11 | J84: 955 | K84: 966 | L84: 87.2 | M84: Debt
A85: 9047 | B85: EBRD | C85: CEX | D85: Albania, Armenia, Azerbaijan, Belarus, Bosnia-Herzegovina, Egypt, Georgia, Jordan, Moldova, Montenegro, Morocco, North Macedonia, Serbia, Tunisia, Turkey, Ukraine, Regional | E85: Under Implementation | F85: Green Logistics Program (non-grant) | G85: GEF - 6 | H85: 2016-02-21 | I85: 16.4 | J85: 155.3 | K85: 171.6 | L85: 9.5 | M85: Debt
A86: 9051 | B86: AfDB | C86: ECA | D86: Regional | E86: Under Implementation | F86: Moringa Agro-forestry Fund for Africa (non-grant) | G86: GEF - 6 | H86: 2015-08-19 | I86: 13.1 | J86: 50.8 | K86: 63.9 | L86: 3.9 | M86: Equity
A87: 9058 | B87: IADB | C87: LAC | D87: Latin America and Caribbean, Regional | E87: Under Implementation | F87: Impact Investment in Support of the Implementation of the Nagoya Protocol on Access and Benefit Sharing (non-grant) | G87: GEF - 6 | H87: 2017-01-04 | I87: 11 | J87: 48.3 | K87: 59.3 | L87: 4.4 | M87: Equity
A88: 9085 | B88: DBSA | C88: AFR | D88: South Africa | E88: CEO Endorsement Cleared | F88: Equity Fund for the Small Projects Independent Power Producer Procurement Programme (SP-IPPPP) | G88: GEF - 6 | H88: 2017-06-08 | I88: 16.6 | J88: 190.5 | K88: 207 | L88: 11.5 | M88: Equity
A89: 9277 | B89: IADB | C89: LAC | D89: Latin America and Caribbean, Regional | E89: Under Implementation | F89: Risk Mitigation Instrument for Land Restoration (Non-Grant) | G89: GEF - 6 | H89: 2017-09-26 | I89: 16.4 | J89: 120 | K89: 136.4 | L89: 7.3 | M89: Risk Mitigation
A90: 9370 | B90: CI | C90: Asia | D90: Indonesia, Philippines, Regional | E90: Under Implementation | F90: (NGI) The Meloy Fund : A Fund for Sustainable Small-scale Fisheries in Southeast Asia | G90: GEF - 6 | H90: 2017-09-26 | I90: 6.8 | J90: 35.2 | K90: 42 | L90: 5.2 | M90: Equity
A91: 9563 | B91: WB | C91: SIDS | D91: Seychelles | E91: Under Implementation | F91: Third South West Indian Ocean Fisheries Governance and Shared Growth Project (SWIOFish3) | G91: GEF - 6 | H91: 2017-06-15 | I91: 11.4 | J91: 54 | K91: 65.4 | L91: 4.7 | M91: Risk Mitigation
A92: 9719 | B92: UNEP | C92: CEX | D92: Global | E92: Under Implementation | F92: Piloting Innovative Investments for Sustainable Landscapes | G92: GEF - 6 | H92: 2018-02-05 | I92: 2.2 | J92: 52 | K92: 54.2 | L92: 23.2 | M92: Equity
A93: 9914 | B93: IUCN | C93: CEX | D93: Global | E93: Project Implemented | F93: CPIC Conservation Finance Initiative - Scaling up and Demonstrating the Value of Blended Finance in Conservation | G93: GEF - 6 | H93: 2019-05-06 | I93: 9.2 | J93: 102.8 | K93: 112 | L93: 11.2 | M93: Equity
A94: 10322 | B94: CI | C94: CEX | D94: Global | E94: Under Implementation | F94: The Food Securities Fund: A fund to finance sustainable supply chains at scale in Emerging Markets | G94: GEF - 7 | H94: 2021-09-07 | I94: 15 | J94: 773.3 | K94: 788.3 | L94: 51.6 | M94: Equity
A95: 10328 | B95: EBRD | C95: ECA | D95: Albania, Bosnia-Herzegovina, Montenegro, North Macedonia, Serbia, Turkey, Regional | E95: CEO Endorsement Cleared | F95: Circular Economy Regional Initiative (CERI) | G95: GEF - 7 | H95: 2021-09-16 | I95: 15 | J95: 141.9 | K95: 156.9 | L95: 9.5 | M95: Debt
A96: 10330 | B96: WB | C96: AFR | D96: South Africa | E96: Under Implementation | F96: Wildlife Conservation Bond | G96: GEF - 7 | H96: 2021-06-03 | I96: 15 | J96: 178.5 | K96: 193.5 | L96: 11.9 | M96: Debt
A97: 10336 | B97: IADB | C97: LAC | D97: Argentina, Brazil, Colombia, Costa Rica, Ecuador, Guatemala, Honduras, Paraguay, Peru, Uruguay, Regional | E97: Under Implementation | F97: Agtech for inclusion and sustainability: SP Ventures'Regional Fund (Agventures II) | G97: GEF - 7 | H97: 2022-01-13 | I97: 5.5 | J97: 55 | K97: 60.5 | L97: 10.1 | M97: Equity
A98: 10497 | B98: CI | C98: CEX | D98: Global | E98: Under Implementation | F98: AGRI3 A Forest Conservation and Sustainable Agriculture Fund for Developing Countries | G98: GEF - 7 | H98: 2022-10-05 | I98: 15 | J98: 151.5 | K98: 166.5 | L98: 10.1 | M98: Equity
A99: 10500 | B99: CI | C99: CEX | D99: Global | E99: CEO Endorsement Cleared | F99: Livelihoods Carbon Fund 3 (LCF3) | G99: GEF - 7 | H99: 2023-06-02 | I99: 15 | J99: 111 | K99: 126 | L99: 7.4 | M99: Equity
A100: 10667 | B100: AfDB | C100: AFR | D100: Regional | E100: Under Implementation | F100: COVID-19 Off-Grid Recovery Platform | G100: GEF - 7 | H100: 2022-06-07 | I100: 14.4 | J100: 57 | K100: 71.4 | L100: 4 | M100: Debt
A101: 11062* | B101: ADB | C101: Asia | D101: Regional | E101: Council Approved | F101: Natural Capital Fund (NCF): Investing in Nature-Positive Agri-Food Enterprises in Asia and the Pacific | G101: GEF-8 | H101: TBD | I101: 15 | J101: 646.4 | K101: 661.4 | L101: 43.1 | M101: Equity
A102: 11066 | B102: IADB | C102: LAC | D102: Regional | E102: Under Implementation | F102: Yield Lab Opportunity Fund I: Accelerating technology and local innovation for sustainable and decarbonized food systems in Latin America and the Caribbean. | G102: GEF-8 | H102: 2024-03-11 | I102: 6.6 | J102: 44 | K102: 50.6 | L102: 6.7 | M102: Equity
A103: 11064* | B103: DBSA | C103: AFR | D103: South Africa | E103: Council Approved | F103: Private Sector Energy Efficiency Programme Phase 2 (PSEEP2) | G103: GEF-8 | H103: TBD | I103: 16.3 | J103: 509 | K103: 525.3 | L103: 31.2 | M103: Risk Mitigation
A104: 11068* | B104: WB | C104: Asia | D104: India | E104: Council Approved | F104: Guarantee Mechanism for Renewable Biogas in India | G104: GEF-8 | H104: TBD | I104: 15 | J104: 705 | K104: 720 | L104: 47 | M104: Risk Mitigation
A105: 11323* | B105: WB | C105: Asia | D105: Indonesia | E105: Council Approved | F105: Indonesia Coral Bond | G105: GEF-8 | H105: TBD | I105: 15 | J105: 156.1 | K105: 171.1 | L105: 12.6 | M105: Reimbursable grant
A106: 11324* | B106: IADB | C106: LAC | D106: Regional | E106: Council Approved | F106: Innovative use of financial instruments for Biodiversity Conservation and Restoration in Latin America and the Caribbean | G106: GEF-8 | H106: TBD | I106: 43.8 | J106: 641.3 | K106: 684.8 | L106: 12.8 | M106: Guarantee
A107: 11326* | B107: WB | C107: CEX | D107: Global | E107: Council Approved | F107: IFC/GEF Green Global Supply Chain Decarbonization Platform | G107: GEF-8 | H107: TBD | I107: 15.1 | J107: 150.1 | K107: 165.1 | L107: 36.5 | M107: Debt
A108: 11327* | B108: Funbio | C108: LAC | D108: Brazil | E108: Council Approved | F108: Living Amazon Mechanism | G108: GEF-8 | H108: TBD | I108: 6.8 | J108: 46.6 | K108: 53.4 | L108: 10.6 | M108: Reimbursable grant
A109: Total | I109: 1,032 | J109: 10,677 | K109: 11,709 | L109: 10.3
J110: =SUM(J3:J108) -> 10663.5
B111: =128+376.7 -> 504.7

Sheet Annex 1 11 13 2024
A1: GEF ID | B1: Agency | C1: Region | D1: Country | E1: Project Status | F1: Title | G1: GEF Phase | H1: CEO Approval | I1: GEF Amount ($M)** | J1: Co-Financing ($M) | K1: Total Project Cost ($M) | L1: Co-financing Ratio | M1: Type of Non-Grant Instrument (summarized)
H2: /Endorsement date
A3: 13 | B3: UNDP | C3: Asia | D3: Thailand | E3: Financially Closed | F3: Removal of Barriers to Biomass Power Generation and Co-generation | G3: GEF - 2 | H3: 2001-01-22 | I3: 7.2 | J3: 66.4 | K3: 73.6 | L3: 9.2 | M3: Risk Mitigation
A4: 91 | B4: WB | C4: CEX | D4: Global | E4: Project Implemented | F4: Small and Medium Scale Enterprise Program (IFC) | G4: GEF - 1 | H4: 1994-07-01 | I4: 4.3 | J4: 15.2 | K4: 19.5 | L4: 3.5 | M4: Mixed
A5: 111 | B5: WB | C5: ECA | D5: Hungary | E5: Project Implemented | F5: Energy Efficiency Co-Financing Program | G5: GEF - 1 | H5: 1997-05-10 | I5: 5 | J5: 20 | K5: 25 | L5: 4 | M5: Risk Mitigation
A6: 112 | B6: WB | C6: CEX | D6: India, Kenya, Morocco, Global | E6: Project Implemented | F6: Photovoltaic Market Transformation Initiative (IFC) | G6: GEF - 1 | H6: 1998-06-16 | I6: 30.4 | J6: 90 | K6: 120.4 | L6: 3 | M6: Mixed
A7: 135 | B7: WB | C7: CEX | D7: Global | E7: Financially Closed | F7: Small and Medium Scale Enterprise Program (IFC, first replenishment) | G7: GEF - 1 | H7: 1997-02-09 | I7: 16.5 | J7: 36 | K7: 52.5 | L7: 2.2 | M7: Mixed
A8: 267 | B8: UNDP | C8: CEX | D8: Egypt, Palestinian Authority, Regional | E8: Financially Closed | F8: Energy Efficiency Improvements and Greenhouse Gas Reductions | G8: GEF - 1 | H8: 1998-06-15 | I8: 6.4 | J8: 1.8 | K8: 8.1 | L8: 0.3 | M8: Risk Mitigation
A9: 314 | B9: UNDP | C9: LAC | D9: Bolivia | E9: Financially Closed | F9: A Program for Rural Electrification with Renewable Energy Using the Popular Participation Law | G9: GEF - 1 | H9: 1999-05-27 | I9: 4.2 | J9: 4.1 | K9: 8.3 | L9: 1 | M9: Debt
A10: 377 | B10: UNDP | C10: AFR | D10: Sudan | E10: Financially Closed | F10: Community Based Rangeland Rehabilitation for Carbon Sequestration | G10: Pilot Phase | H10: 1994-08-01 | I10: 1.5 | J10: 0.1 | K10: 1.6 | L10: 0.1 | M10: Debt
A11: 386 | B11: UNDP | C11: Asia | D11: India | E11: Financially Closed | F11: Optimizing Development of Small Hydel Resources in Hilly Areas | G11: Pilot Phase | H11: 1991-12-01 | I11: 7.5 | J11: 7.1 | K11: 14.6 | L11: 1 | M11: Debt
A12: 391 | B12: UNDP | C12: Asia | D12: Pakistan | E12: Financially Closed | F12: Fuel Efficiency in the Road Transport Sector | G12: Pilot Phase | H12: 1992-05-01 | I12: 7 | J12: 0 | K12: 7 | L12: 0 | M12: Debt
A13: 448 | B13: UNDP | C13: Asia | D13: Malaysia | E13: Financially Closed | F13: Industrial Energy Efficiency Improvement Project | G13: GEF - 1 | H13: 1999-06-07 | I13: 7.3 | J13: 12.6 | K13: 19.9 | L13: 1.7 | M13: Debt
A14: 540 | B14: WB | C14: Asia | D14: Thailand | E14: Financially Closed | F14: Building Chiller Replacement Program | G14: GEF - 2 | H14: 2001-04-22 | I14: 2.5 | J14: 88 | K14: 90.5 | L14: 35.2 | M14: Debt
A15: 622 | B15: UNDP | C15: Asia | D15: China | E15: Project Implemented | F15: Energy Conservation and GHG Emission Reduction in Chinese Township and Village Enterprises (TVE), Phase II | G15: GEF - 2 | H15: 2000-10-10 | I15: 8 | J15: 10.6 | K15: 18.5 | L15: 1.3 | M15: Debt
A16: 641 | B16: UNDP | C16: AFR | D16: Malawi | E16: Financially Closed | F16: Barrier Removal to Renewable Energy Programme | G16: GEF - 2 | H16: 2000-10-14 | I16: 3.4 | J16: 7.3 | K16: 10.7 | L16: 2.1 | M16: Risk Mitigation
A17: 646 | B17: UNDP | C17: AFR | D17: Morocco | E17: Financially Closed | F17: Market Development for Solar Water Heaters | G17: GEF - 2 | H17: 2000-04-23 | I17: 3 | J17: 2.4 | K17: 5.4 | L17: 0.8 | M17: Risk Mitigation
A18: 658 | B18: UNDP | C18: ECA | D18: Slovenia | E18: Financially Closed | F18: Removing Barriers to the Increased Use of Biomass as an Energy Source | G18: GEF - 2 | H18: 2001-02-04 | I18: 4.4 | J18: 7.9 | K18: 12.3 | L18: 1.8 | M18: Debt
A19: 660 | B19: UNDP | C19: AFR | D19: Sudan | E19: Financially Closed | F19: Barrier Removal to Secure PV Market Penetration in Semi-Urban Sudan | G19: GEF - 2 | H19: 1999-03-04 | I19: 0.8 | J19: 1 | K19: 1.7 | L19: 1.3 | M19: Risk Mitigation
A20: 786 | B20: WB | C20: ECA | D20: Poland | E20: Financially Closed | F20: Krakow Energy Efficiency Project | G20: GEF - 2 | H20: 2004-09-20 | I20: 12.1 | J20: 88 | K20: 100.1 | L20: 7.3 | M20: Risk Mitigation
A21: 843 | B21: UNDP | C21: LAC | D21: Chile | E21: Financially Closed | F21: Removal of Barriers to Rural Electrification with Renewable Energy | G21: GEF - 2 | H21: 2001-06-27 | I21: 6.4 | J21: 26.3 | K21: 32.8 | L21: 4.1 | M21: Risk Mitigation
A22: 882 | B22: UNDP | C22: ECA | D22: Croatia | E22: Financially Closed | F22: Removing Barriers to Improving Energy Efficiency of the Residential and Service Sectors | G22: GEF - 2 | H22: 2004-08-08 | I22: 5 | J22: 8.7 | K22: 13.6 | L22: 1.7 | M22: Risk Mitigation
A23: 883 | B23: WB | C23: ECA | D23: Romania | E23: Financially Closed | F23: Energy Efficiency Project | G23: GEF - 2 | H23: 2002-08-19 | I23: 11.4 | J23: 40 | K23: 51.4 | L23: 3.5 | M23: Debt
A24: 935 | B24: UNDP | C24: AFR | D24: Namibia | E24: Financially Closed | F24: Barrier Removal to Namibian Renewable Energy Programme, Phase I | G24: GEF - 2 | H24: 2003-01-12 | I24: 2.9 | J24: 4.7 | K24: 7.7 | L24: 1.6 | M24: Risk Mitigation
A25: 944 | B25: WB | C25: ECA | D25: Croatia | E25: Financially Closed | F25: Energy Efficiency Project | G25: GEF - 2 | H25: 2003-08-24 | I25: 7.8 | J25: 23.4 | K25: 31.2 | L25: 3 | M25: Risk Mitigation
A26: 1061 | B26: WB | C26: LAC | D26: Peru | E26: Financially Closed | F26: Inka Terra: An Innovative Partnership for Self-Financing Biodiversity Conservation & Community Development | G26: GEF - 3 | H26: 2003-12-18 | I26: 0.9 | J26: 11.4 | K26: 12.3 | L26: 12.7 | M26: Debt
A27: 1137 | B27: UNDP | C27: ECA | D27: Georgia | E27: Financially Closed | F27: Promoting the Use of Renewable Energy Resources for Local Energy Supply | G27: GEF - 3 | H27: 2004-02-10 | I27: 5.1 | J27: 8.7 | K27: 13.8 | L27: 1.7 | M27: Debt
A28: 1198 | B28: UNDP | C28: ECA | D28: Belarus | E28: Financially Closed | F28: Biomass Energy for Heating and Hot Water Supply | G28: GEF - 3 | H28: 2003-06-25 | I28: 3.8 | J28: 5.6 | K28: 9.3 | L28: 1.5 | M28: Debt
A29: 1199 | B29: UNDP | C29: Asia | D29: India | E29: Financially Closed | F29: Removal of Barriers to Biomass Power Generation, Part I | G29: GEF - 3 | H29: 2005-01-12 | I29: 6 | J29: 33.5 | K29: 39.5 | L29: 5.6 | M29: Risk Mitigation
A30: 1237 | B30: WB | C30: Asia | D30: China | E30: Financially Closed | F30: Energy Conservation Project, Phase II | G30: GEF - 2 | H30: 2002-09-29 | I30: 29.1 | J30: 255.2 | K30: 284.3 | L30: 8.8 | M30: Risk Mitigation
A31: 1245 | B31: UNDP | C31: AFR | D31: Lesotho | E31: Financially Closed | F31: Renewable Energy-based Rural Electrification | G31: GEF - 3 | H31: 2006-09-21 | I31: 3.2 | J31: 4.3 | K31: 7.5 | L31: 1.3 | M31: Risk Mitigation
A32: 1264 | B32: UNDP | C32: Asia | D32: Philippines | E32: Financially Closed | F32: Capacity Building to Remove Barriers to Renewable Energy Development | G32: GEF - 2 | H32: 2002-09-23 | I32: 6.8 | J32: 18.3 | K32: 25.2 | L32: 2.7 | M32: Risk Mitigation
A33: 1265 | B33: UNDP | C33: ECA | D33: Poland | E33: Financially Closed | F33: Polish Energy Efficiency Motors Programme | G33: GEF - 2 | H33: 2003-11-04 | I33: 4.9 | J33: 17.7 | K33: 22.6 | L33: 3.6 | M33: Debt
A34: 1291 | B34: WB | C34: ECA | D34: Croatia | E34: Financially Closed | F34: Renewable Energy Resources Project | G34: GEF - 2 | H34: 2005-05-22 | I34: 6.7 | J34: 21.4 | K34: 28.2 | L34: 3.2 | M34: Mixed
A35: 1316 | B35: WB | C35: ECA | D35: Hungary | E35: Financially Closed | F35: Energy Efficiency Co-Financing Program 2 (HEECP2) | G35: GEF - 2 | H35: 2001-10-02 | I35: 0.9 | J35: 93.2 | K35: 94.1 | L35: 99.1 | M35: Risk Mitigation
A36: 1335 | B36: UNDP | C36: AFR | D36: Egypt | E36: Project Implemented | F36: Bioenergy for Sustainable Rural Development | G36: GEF - 3 | H36: 2008-07-13 | I36: 3.6 | J36: 13.3 | K36: 16.9 | L36: 3.6 | M36: Debt
A37: 1358 | B37: UNEP | C37: AFR | D37: Zambia | E37: Financially Closed | F37: Renewable Energy-based Electricity Generation for Isolated Mini-grids | G37: GEF - 3 | H37: 2005-11-15 | I37: 3.7 | J37: 4.6 | K37: 8.2 | L37: 1.2 | M37: Debt
A38: 1361 | B38: UNEP | C38: SIDS | D38: Cuba | E38: Financially Closed | F38: Generation and Delivery of Renewable Energy Based Modern Energy Services in Cuba; the case of Isla de la Juventud | G38: GEF - 3 | H38: 2005-03-20 | I38: 6 | J38: 10.5 | K38: 16.5 | L38: 1.7 | M38: Debt
A39: 1413 | B39: UNDP | C39: LAC | D39: Honduras | E39: Financially Closed | F39: Energy Efficiency Measures in the Honduran Commercial and Industry Sectors | G39: GEF - 3 | H39: 2004-01-15 | I39: 1.1 | J39: 1.6 | K39: 2.8 | L39: 1.4 | M39: Risk Mitigation
A40: 1532 | B40: WB | C40: Asia | D40: Philippines | E40: Financially Closed | F40: Electric Cooperative System Loss Reduction Project | G40: GEF - 3 | H40: 2004-04-11 | I40: 13.6 | J40: 50.5 | K40: 64.1 | L40: 3.7 | M40: Risk Mitigation
A41: 1541 | B41: WB | C41: ECA | D41: Czech Republic, Estonia, Latvia, Lithuania, Slovak Republic, Regional | E41: Project Implemented | F41: Commercializing Energy Efficiency Finance (CEEF) - Tranche I | G41: GEF - 2 | H41: 2002-10-05 | I41: 12.5 | J41: 20.9 | K41: 33.3 | L41: 1.7 | M41: Risk Mitigation
A42: 1571 | B42: WB | C42: LAC | D42: Belize, Bolivia, Costa Rica, Ecuador, El Salvador, Mexico, Panama, Paraguay, Peru, Regional | E42: Financially Closed | F42: EcoEnterprises Fund | G42: GEF - 2 | H42: 2002-04-18 | I42: 1.1 | J42: 9 | K42: 10.1 | L42: 7.9 | M42: Debt
A43: 1609 | B43: UNEP | C43: CEX | D43: Belize, Cambodia, Cameroon, Costa Rica, Ghana, Guatemala, Indonesia, Nicaragua, Panama, Philippines, Tanzania, Thailand, Viet Nam, Zambia, Global | E43: Project Implemented | F43: Renewable Energy Enterprise Development - Seed Capital Access Facility | G43: GEF - 3 | H43: 2007-05-30 | I43: 9.2 | J43: 40.5 | K43: 49.7 | L43: 4.4 | M43: Equity
A44: 1646 | B44: UNDP | C44: ECA | D44: Russian Federation | E44: Financially Closed | F44: Cost Effective Energy Efficiency Measures in the Russian Educational Sector | G44: GEF - 2 | H44: 2002-06-09 | I44: 1.1 | J44: 1.7 | K44: 2.9 | L44: 1.5 | M44: Debt
A45: 2000 | B45: WB | C45: CEX | D45: Global | E45: Project Implemented | F45: Environmental Business Finance Program (EBFP) | G45: GEF - 3 | H45: 2004-03-23 | I45: 20 | J45: 80 | K45: 100 | L45: 4 | M45: Risk Mitigation
A46: 2105 | B46: UNDP | C46: ECA | D46: Croatia | E46: Financially Closed | F46: Conservation and Sustainable Use of Biodiversity in the Dalmatian Coast through Greening Coastal Development | G46: GEF - 3 | H46: 2006-09-27 | I46: 8 | J46: 24.3 | K46: 32.3 | L46: 3.1 | M46: Risk Mitigation
A47: 2108 | B47: WB | C47: Asia | D47: Philippines | E47: Financially Closed | F47: Electric Cooperative System Loss Reduction Project | G47: GEF-3 | H47: 2009-04-12 | I47: 5.8 | J47: 20 | K47: 25.8 | L47: 3.4 | M47: Risk Mitigation
A48: 2111 | B48: WB | C48: ECA | D48: Russian Federation | E48: Project Implemented | F48: Russian Sustainable Energy Finance Program | G48: GEF - 3 | H48: 2005-03-16 | I48: 7.6 | J48: 23.3 | K48: 30.9 | L48: 3 | M48: Risk Mitigation
A49: 2117 | B49: WB | C49: ECA | D49: Bulgaria | E49: Financially Closed | F49: Energy Efficiency Project | G49: GEF - 3 | H49: 2005-02-13 | I49: 11.1 | J49: 39.5 | K49: 50.7 | L49: 3.5 | M49: Risk Mitigation
A50: 2119 | B50: UNEP | C50: AFR | D50: Eritrea, Ethiopia, Kenya, Rwanda, Tanzania, Uganda, Regional | E50: Financially Closed | F50: African Rift Geothermal Development Facility (ARGeo) | G50: GEF - 3 | H50: 2012-07-24 | I50: 20.7 | J50: 55.6 | K50: 76.3 | L50: 2.7 | M50: Debt
A51: 2174 | B51: WB | C51: ECA | D51: Czech Republic, Estonia, Latvia, Lithuania, Slovak Republic, Regional | E51: Project Implemented | F51: Commercializing Energy Efficiency Finance (CEEF) - Tranche II | G51: GEF - 2 | H51: 2003-08-10 | I51: 9.9 | J51: 57 | K51: 66.9 | L51: 5.8 | M51: Risk Mitigation
A52: 2256 | B52: UNDP | C52: AFR | D52: Namibia | E52: Financially Closed | F52: Barrier Removal to Namibian Renewable Energy Programme (NAMREP), Phase II | G52: GEF - 3 | H52: 2007-05-30 | I52: 2.8 | J52: 7.6 | K52: 10.5 | L52: 2.7 | M52: Risk Mitigation
A53: 2531 | B53: WB | C53: ECA | D53: North Macedonia | E53: Financially Closed | F53: Sustainable Energy Program | G53: GEF - 3 | H53: 2006-11-26 | I53: 6.4 | J53: 28.8 | K53: 35.2 | L53: 4.5 | M53: Debt
A54: 2619 | B54: UNEP | C54: ECA | D54: Belarus, Bulgaria, Kazakhstan, North Macedonia, Romania, Russian Federation, Serbia, Ukraine, Regional | E54: Financially Closed | F54: Financing Energy Efficiency and Renewable Energy Investments for Climate Change Mitigation | G54: GEF - 3 | H54: 2006-10-24 | I54: 3.3 | J54: 9.3 | K54: 12.5 | L54: 2.8 | M54: Mixed
A55: 2624 | B55: WB | C55: Asia | D55: China | E55: Project Implemented | F55: China Utility-Based Energy Efficiency Finance Program (CHUEE) | G55: GEF - 3 | H55: 2006-03-09 | I55: 18 | J55: 130.4 | K55: 148.4 | L55: 7.3 | M55: Risk Mitigation
A56: 2670 | B56: UNDP | C56: LAC | D56: Costa Rica, El Salvador, Guatemala, Honduras, Nicaragua, Regional | E56: Financially Closed | F56: Central American Markets for Biodiversity (CAMBio): Mainstreaming Biodiversity Conservation and Sustainable use within Micro, Small and Medium-sized Enterprise Development and Financing | G56: GEF - 3 | H56: 2006-03-19 | I56: 11 | J56: 17.8 | K56: 28.8 | L56: 1.6 | M56: Risk Mitigation
A57: 2939 | B57: UNDP | C57: CEX | D57: Global | E57: Financially Closed | F57: Solar Water Heating Market Transformation and Strengthening Initiative, Phase 1 | G57: GEF - 3 | H57: 2008-07-28 | I57: 13.4 | J57: 19.2 | K57: 32.5 | L57: 1.4 | M57: Risk Mitigation
A58: 2941 | B58: UNDP | C58: LAC | D58: Brazil | E58: Project Implemented | F58: Market Transformation for Energy Efficiency in Buildings | G58: GEF - 4 | H58: 2009-07-28 | I58: 15.1 | J58: 64.8 | K58: 79.9 | L58: 4.3 | M58: Mixed
A59: 2944 | B59: WB | C59: SIDS | D59: Fiji, Marshall Islands, Papua New Guinea, Solomon Islands, Vanuatu, Regional | E59: Under Implementation | F59: Sustainable Energy Financing | G59: GEF - 3 | H59: 2007-05-17 | I59: 10.3 | J59: 21.6 | K59: 31.9 | L59: 2.1 | M59: Risk Mitigation
A60: 3005 | B60: IADB | C60: LAC | D60: Brazil, Mexico, Nicaragua, Panama, Regional | E60: Project Implemented | F60: CleanTech Fund | G60: GEF - 3 | H60: 2006-02-06 | I60: 1.1 | J60: 61.2 | K60: 62.3 | L60: 56.4 | M60: Equity
A61: 3558 | B61: WB | C61: AFR | D61: Cabo Verde, Liberia, Senegal, Sierra Leone, Regional | E61: Financially Closed | F61: SP-SFIF: West Africa Regional Fisheries Program (WARFP) | G61: GEF - 3 | H61: 2009-08-31 | I61: 11.5 | J61: 121 | K61: 132.5 | L61: 10.6 | M61: Debt
A62: 3597 | B62: EBRD | C62: ECA | D62: Russian Federation | E62: Under Implementation | F62: RUS Improving Urban Housing Efficiency in the Russian Federation | G62: GEF - 4 | H62: 2010-11-18 | I62: 10.8 | J62: 86.7 | K62: 97.5 | L62: 8 | M62: Debt
A63: 3626 | B63: UNEP | C63: SIDS | D63: Marshall Islands, Micronesia, Palau, Regional | E63: Financially Closed | F63: PAS: The Micronesia Challenge : Sustainable Finance Systems for Island Protected Area Management - under the GEF Pacific Alliance for Sustainability | G63: GEF - 4 | H63: 2010-05-27 | I63: 6 | J63: 10.9 | K63: 16.9 | L63: 1.8 | M63: Debt
A64: 3766 | B64: IADB | C64: LAC | D64: Antigua and Barbuda, Barbados, Costa Rica, Guatemala, Guyana, Honduras, Panama,St. Lucia, Suriname, Regional | E64: Financially Closed | F64: Testing a Prototype Caribbean Regional Fund for Wastewater Management (CReW) | G64: GEF - 4 | H64: 2010-12-01 | I64: 22.4 | J64: 251.5 | K64: 273.9 | L64: 11.2 | M64: Debt
A65: 4176 | B65: IADB | C65: LAC | D65: Chile | E65: Project Implemented | F65: Encouraging the Establishment and Consolidation of an Energy Service Market in Chile | G65: GEF - 4 | H65: 2010-12-07 | I65: 2.6 | J65: 12.9 | K65: 15.5 | L65: 5 | M65: Risk Mitigation
A66: 4257 | B66: WB | C66: CEX | D66: Global | E66: Project Implemented | F66: The GEF Earth Fund: IFC Earth Fund Platform | G66: GEF - 4 | H66: 2008-08-31 | I66: 32.7 | J66: 90 | K66: 122.7 | L66: 2.8 | M66: Mixed
A67: 4348 | B67: EBRD | C67: ECA | D67: Kazakhstan | E67: Under Implementation | F67: Reducing GHG Emissions through a Resource Efficiency Transformation Programme (ResET) for Industries in Kazakhstan | G67: GEF - 5 | H67: 2012-02-28 | I67: 7.8 | J67: 38.5 | K67: 46.3 | L67: 5 | M67: Debt
A68: 4512 | B68: ADB | C68: Asia | D68: Regional | E68: Financially Closed | F68: Pilot Asia-Pacific Climate Technology Network and Finance Center | G68: GEF - 5 | H68: 2012-05-30 | I68: 12 | J68: 75 | K68: 87 | L68: 6.2 | M68: Equity
A69: 4626 | B69: WB | C69: AFR | D69: Djibouti | E69: Project Implemented | F69: Geothermal Power Generation Program | G69: GEF - 5 | H69: 2013-03-11 | I69: 6.6 | J69: 22.5 | K69: 29.1 | L69: 3.4 | M69: Debt
A70: 4753 | B70: UNIDO | C70: Asia | D70: Pakistan | E70: Under Implementation | F70: Sustainable Energy Initiative for Industries | G70: GEF - 5 | H70: 2014-04-01 | I70: 4 | J70: 32.7 | K70: 36.7 | L70: 8.2 | M70: Mixed
A71: 4784 | B71: UNIDO | C71: ECA | D71: Ukraine | E71: Under Implementation | F71: Introduction of Energy Management System Standard in Ukrainian Industry | G71: GEF - 5 | H71: 2013-10-20 | I71: 6.2 | J71: 39.8 | K71: 45.9 | L71: 6.4 | M71: Mixed
A72: 4788 | B72: UNIDO | C72: Asia | D72: India | E72: Project Implemented | F72: Promoting Business Models for Increasing Penetration and Scaling up of Solar Energy | G72: GEF - 5 | H72: 2013-12-22 | I72: 4.9 | J72: 21.8 | K72: 26.7 | L72: 4.5 | M72: Mixed
A73: 4801 | B73: UNDP | C73: Asia | D73: Viet Nam | E73: Project Implemented | F73: Promotion of Non-fired Brick (NFB) Production and Utilization | G73: GEF - 5 | H73: 2014-03-10 | I73: 3.2 | J73: 36.1 | K73: 39.3 | L73: 11.3 | M73: Debt
A74: 4890 | B74: UNIDO | C74: LAC | D74: Uruguay | E74: Project Implemented | F74: Towards a Green Economy in Uruguay: Stimulating Sustainable Production Practices and Low-emission Technologies in Prioritized Sectors | G74: GEF - 5 | H74: 2013-11-18 | I74: 3.8 | J74: 19.8 | K74: 23.6 | L74: 5.2 | M74: Debt
A75: 4918 | B75: WB | C75: Asia | D75: India | E75: Under Implementation | F75: Partial Risk Sharing Facility for Energy Efficiency | G75: GEF - 5 | H75: 2015-02-08 | I75: 19.8 | J75: 594.3 | K75: 614.1 | L75: 30 | M75: Risk Mitigation
A76: 4929 | B76: AfDB | C76: AFR | D76: Africa, Regional | E76: Under Implementation | F76: AfDB-PPP Public-Private Partnership Program | G76: GEF - 5 | H76: 2013-02-21 | I76: 21.6 | J76: 240 | K76: 261.6 | L76: 11.1 | M76: Debt
A77: 4957 | B77: WB | C77: ECA | D77: Turkey | E77: Project Implemented | F77: Small and Medium Enterprise Energy Efficiency Project | G77: GEF - 5 | H77: 2013-02-21 | I77: 4 | J77: 252.5 | K77: 256.5 | L77: 63.1 | M77: Debt
A78: 4959 | B78: IADB | C78: LAC | D78: Latin America and Caribbean, Regional | E78: Under Implementation | F78: IDB-PPP MIF Public-Private Partnership Program | G78: GEF - 5 | H78: 2013-03-27 | I78: 16.2 | J78: 266.3 | K78: 282.5 | L78: 16.4 | M78: Equity
A79: 5143 | B79: EBRD | C79: AFR | D79: Egypt, Jordan, Morocco, Tunisia, Regional | E79: Under Implementation | F79: PPP-EBRD South Eastern Mediterranean EE/ ESCO Markets Platform (PROGRAM) | G79: GEF - 5 | H79: 2014-09-03 | I79: 16.2 | J79: 150 | K79: 166.2 | L79: 9.3 | M79: Mixed
A80: 5388 | B80: IADB | C80: LAC | D80: Regional | E80: Under Implementation | F80: PPP-IDB Sustainable Caribbean Basin Energy Fund (PROGRAM) | G80: GEF - 5 | H80: 2016-09-01 | I80: 16.2 | J80: 200 | K80: 216.2 | L80: 12.3 | M80: Equity
A81: 5704 | B81: UNIDO | C81: AFR | D81: South Africa | E81: Under Implementation | F81: Promoting Organic Waste-to-Energy and other Low-carbon Technologies in Small and Medium-scale Enterprises (SMMEs): Accelarating Biogas Market Development | G81: GEF - 5 | H81: 2016-01-13 | I81: 4.7 | J81: 25.5 | K81: 30.2 | L81: 5.4 | M81: Mixed
A82: 5754 | B82: IADB | C82: LAC | D82: Latin America and Caribbean,Regional | E82: Under Implementation | F82: IDB-GEF Climate-Smart Agriculture Fund for Latin America and the Caribbean (PROGRAM) | G82: GEF - 5 | H82: 2015-03-17 | I82: 5.4 | J82: 50.9 | K82: 56.3 | L82: 9.4 | M82: Mixed
A83: 6980 | B83: WB | C83: CEX | D83: Global | E83: Financially Closed | F83: The International Lighting Efficiency Facility (iLEF)(non-grant) | G83: GEF - 6 | H83: 2015-05-10 | I83: 1.3 | J83: 50.3 | K83: 51.6 | L83: 38.2 | M83: Debt
A84: 9043 | B84: AfDB | C84: AFR | D84: Africa, Regional | E84: Under Implementation | F84: Investing in Renewable Energy Project Preparation under the Fund for Energy Inclusion (FEI) | G84: GEF - 6 | H84: 2018-06-13 | I84: 11 | J84: 955 | K84: 966 | L84: 87.2 | M84: Debt
A85: 9047 | B85: EBRD | C85: CEX | D85: Albania, Armenia, Azerbaijan, Belarus, Bosnia-Herzegovina, Egypt, Georgia, Jordan, Moldova, Montenegro, Morocco, North Macedonia, Serbia, Tunisia, Turkey, Ukraine, Regional | E85: Under Implementation | F85: Green Logistics Program (non-grant) | G85: GEF - 6 | H85: 2016-02-21 | I85: 16.4 | J85: 155.3 | K85: 171.6 | L85: 9.5 | M85: Debt
A86: 9051 | B86: AfDB | C86: ECA | D86: Regional | E86: Under Implementation | F86: Moringa Agro-forestry Fund for Africa (non-grant) | G86: GEF - 6 | H86: 2015-08-19 | I86: 13.1 | J86: 50.8 | K86: 63.9 | L86: 3.9 | M86: Equity
A87: 9058 | B87: IADB | C87: LAC | D87: Latin America and Caribbean, Regional | E87: Under Implementation | F87: Impact Investment in Support of the Implementation of the Nagoya Protocol on Access and Benefit Sharing (non-grant) | G87: GEF - 6 | H87: 2017-01-04 | I87: 11 | J87: 48.3 | K87: 59.3 | L87: 4.4 | M87: Equity
A88: 9085 | B88: DBSA | C88: AFR | D88: South Africa | E88: CEO Endorsement Cleared | F88: Equity Fund for the Small Projects Independent Power Producer Procurement Programme (SP-IPPPP) | G88: GEF - 6 | H88: 2017-06-08 | I88: 16.6 | J88: 190.5 | K88: 207 | L88: 11.5 | M88: Equity
A89: 9277 | B89: IADB | C89: LAC | D89: Latin America and Caribbean, Regional | E89: Under Implementation | F89: Risk Mitigation Instrument for Land Restoration (Non-Grant) | G89: GEF - 6 | H89: 2017-09-26 | I89: 16.4 | J89: 120 | K89: 136.4 | L89: 7.3 | M89: Risk Mitigation
A90: 9370 | B90: CI | C90: Asia | D90: Indonesia, Philippines, Regional | E90: Under Implementation | F90: (NGI) The Meloy Fund : A Fund for Sustainable Small-scale Fisheries in Southeast Asia | G90: GEF - 6 | H90: 2017-09-26 | I90: 6.8 | J90: 35.2 | K90: 42 | L90: 5.2 | M90: Equity
A91: 9563 | B91: WB | C91: SIDS | D91: Seychelles | E91: Under Implementation | F91: Third South West Indian Ocean Fisheries Governance and Shared Growth Project (SWIOFish3) | G91: GEF - 6 | H91: 2017-06-15 | I91: 11.4 | J91: 54 | K91: 65.4 | L91: 4.7 | M91: Risk Mitigation
A92: 9719 | B92: UNEP | C92: CEX | D92: Global | E92: Under Implementation | F92: Piloting Innovative Investments for Sustainable Landscapes | G92: GEF - 6 | H92: 2018-02-05 | I92: 2.2 | J92: 52 | K92: 54.2 | L92: 23.2 | M92: Equity
A93: 9914 | B93: IUCN | C93: CEX | D93: Global | E93: Project Implemented | F93: CPIC Conservation Finance Initiative - Scaling up and Demonstrating the Value of Blended Finance in Conservation | G93: GEF - 6 | H93: 2019-05-06 | I93: 9.2 | J93: 102.8 | K93: 112 | L93: 11.2 | M93: Equity
A94: 10322 | B94: CI | C94: CEX | D94: Global | E94: Under Implementation | F94: The Food Securities Fund: A fund to finance sustainable supply chains at scale in Emerging Markets | G94: GEF - 7 | H94: 2021-09-07 | I94: 15 | J94: 773.3 | K94: 788.3 | L94: 51.6 | M94: Equity
A95: 10328 | B95: EBRD | C95: ECA | D95: Albania, Bosnia-Herzegovina, Montenegro, North Macedonia, Serbia, Turkey, Regional | E95: CEO Endorsement Cleared | F95: Circular Economy Regional Initiative (CERI) | G95: GEF - 7 | H95: 2021-09-16 | I95: 15 | J95: 141.9 | K95: 156.9 | L95: 9.5 | M95: Debt
A96: 10330 | B96: WB | C96: AFR | D96: South Africa | E96: Under Implementation | F96: Wildlife Conservation Bond | G96: GEF - 7 | H96: 2021-06-03 | I96: 15 | J96: 178.5 | K96: 193.5 | L96: 11.9 | M96: Debt
A97: 10336 | B97: IADB | C97: LAC | D97: Argentina, Brazil, Colombia, Costa Rica, Ecuador, Guatemala, Honduras, Paraguay, Peru, Uruguay, Regional | E97: Under Implementation | F97: Agtech for inclusion and sustainability: SP Ventures'Regional Fund (Agventures II) | G97: GEF - 7 | H97: 2022-01-13 | I97: 5.5 | J97: 55 | K97: 60.5 | L97: 10.1 | M97: Equity
A98: 10497 | B98: CI | C98: CEX | D98: Global | E98: Under Implementation | F98: AGRI3 A Forest Conservation and Sustainable Agriculture Fund for Developing Countries | G98: GEF - 7 | H98: 2022-10-05 | I98: 15 | J98: 151.5 | K98: 166.5 | L98: 10.1 | M98: Equity
A99: 10500 | B99: CI | C99: CEX | D99: Global | E99: CEO Endorsement Cleared | F99: Livelihoods Carbon Fund 3 (LCF3) | G99: GEF - 7 | H99: 2023-06-02 | I99: 15 | J99: 111 | K99: 126 | L99: 7.4 | M99: Equity
A100: 10667 | B100: AfDB | C100: AFR | D100: Regional | E100: Under Implementation | F100: COVID-19 Off-Grid Recovery Platform | G100: GEF - 7 | H100: 2022-06-07 | I100: 14.4 | J100: 57 | K100: 71.4 | L100: 4 | M100: Debt
A101: 11062* | B101: ADB | C101: Asia | D101: Regional | E101: Council Approved | F101: Natural Capital Fund (NCF): Investing in Nature-Positive Agri-Food Enterprises in Asia and the Pacific | G101: GEF-8 | H101: TBD | I101: 15 | J101: 646.4 | K101: 661.4 | L101: 43.1 | M101: Equity
A102: 11064* | B102: DBSA | C102: AFR | D102: South Africa | E102: Council Approved | F102: Private Sector Energy Efficiency Programme Phase 2 (PSEEP2) | G102: GEF-8 | H102: TBD | I102: 16.3 | J102: 509 | K102: 525.3 | L102: 31.2 | M102: Risk Mitigation
A103: 11066 | B103: IADB | C103: LAC | D103: Regional | E103: Under Implementation | F103: Yield Lab Opportunity Fund I: Accelerating technology and local innovation for sustainable and decarbonized food systems in Latin America and the Caribbean. | G103: GEF-8 | H103: 2024-03-11 | I103: 6.6 | J103: 44 | K103: 50.6 | L103: 6.7 | M103: Equity
A104: 11068* | B104: WB | C104: Asia | D104: India | E104: Council Approved | F104: Guarantee Mechanism for Renewable Biogas in India | G104: GEF-8 | H104: TBD | I104: 15 | J104: 705 | K104: 720 | L104: 47 | M104: Risk Mitigation
A105: 11323* | B105: WB | C105: Asia | D105: Indonesia | E105: Council Approved | F105: Indonesia Coral Bond | G105: GEF-8 | H105: TBD | I105: 15 | J105: 156.1 | K105: 171.1 | L105: 10.41 | M105: Reimbursable grant
A106: 11324* | B106: IADB | C106: LAC | D106: Regional | E106: Council Approved | F106: Innovative use of financial instruments for Biodiversity Conservation and Restoration in Latin America and the Caribbean | G106: GEF-8 | H106: TBD | I106: 43.8 | J106: 641.3 | K106: 684.8 | L106: 14.64 | M106: Guarantee
A107: 11326* | B107: WB | C107: CEX | D107: Global | E107: Council Approved | F107: IFC/GEF Green Global Supply Chain Decarbonization Platform | G107: GEF-8 | H107: TBD | I107: 16 | J107: 150.1 | K107: 166.1 | L107: 9.38 | M107: Debt
A108: 11327* | B108: Funbio | C108: LAC | D108: Brazil | E108: Council Approved | F108: Living Amazon Mechanism | G108: GEF-8 | H108: TBD | I108: 6.9 | J108: 46.6 | K108: 53.4 | L108: 6.76 | M108: Reimbursable grant
A109: Total | I109: =SUM(I3:I108) -> 1,032 | J109: =SUM(J3:J108) -> 10,664 | K109: 11,695 | L109: =J109/I109 -> 10.3
